Workbook

Sheet SolCotizacion
B1: Solicitud de Cotización
B3: Acuerdo Marco Motos
B4: Versión: 22 | C4: 2018-12-17
B5: Información de la Entidad Compradora
B7: Nombre de la Entidad: | K7: NIT:
B9: Dirección de la Entidad: | K9: Municipio:
B11: Nombre del Comprador: | K11: Teléfono:
B13: Correo del comprador:
B15: Fechas estimadas
E17: Fecha creación solicitud cotización: | I17: 2018-09-17
B19: Artículos Solicitud de Cotización
B24: Segmento | D24: =IF(B25="","No Aplica",VLOOKUP(B25,Listas!$A$2:$B$18,2,0)) -> No Aplica | H24: Intervalo de precio | L24: Unidades
A25: =VLOOKUP(SUBSTITUTE(SUBSTITUTE(SUBSTITUTE(B25&D25&H25,".","")," ",""),"-",""),Consolidado!B:AV,47,0) -> 
B27: Adecuaciones y Accesorios
B28: Descripción | H28: Cantidad | J28: Sí / No | K28: Observaciones
B29: Defensa | J29: NO
B30: Pintura (100% del exterior de la Motocicleta, Cuatrimoto o Motocarro) | J30: NO
B31: Adhesivos de emblemas (por metro cuadrado) | J31: NO
B32: Sirena Compacta | J32: NO
B33: Luces de Emergencia | J33: NO
B34: Exploradoras | J34: NO
B35: Casco abatible | J35: NO
B36: Casco cerrado | J36: NO
B37: Impermeables | J37: NO
B38: Chalecos reflectivos | J38: NO
B39: Rodilleras, coderas y guantes | J39: NO
B40: Maletero | J40: NO
B41: Chaqueta antifricción | J41: NO
B42: Body armor | J42: NO
B43: Maleteros Laterales | J43: NO
B44: Parrilla | J44: NO
B46: Mantenimiento Preventivo
B47: Descripción | N47: Sí / No
B48: 24 mil Km | N48: NO
B49: 36 mil Km | N49: NO
B50: 48 mil Km | N50: NO
B51: 60 mil Km | N51: NO
B53: Requerimientos de la Matricula
B56: Lugar de Entrega
B57: Ciudad de Entrega | N57: Unidades
B59: Si requiere agregue o elimine filas
B61: Incluye SOAT
B62: Sí / No | I62: Vigencia
B65: Gravámenes adicionales (estampillas)
B67: Indique los gravámenes adicionales (estampilllas) a los que está sujeta la Orden de Compra. Son gravámens adiconales por ejemplo; estampillas y demás impuestos territoriales. Los impuestos como ICA y retención en la fuente NO son gravámenes adicionales.
B68: ¿Como debe calcular el proveedor el valor de las estampillas? | F68: No aplica
B70: No. | C70: Descripción | N70: % Gravámen
B71: 1
J73: Total Gravámenes adicionales | N73: =SUM(N71:O71) -> 0

Sheet ResumenCotizacionE (hidden)
B1: Solicitud de Cotización
B3: Acuerdo Marco Motos
B5: Información de la Entidad Compradora
B7: Nombre de la Entidad: | E7: g | K7: NIT: | L7: g
B9: Dirección de la Entidad: | E9: g | K9: Municipio: | L9: g
B11: Nombre del Comprador: | E11: g | K11: Teléfono: | L11: g | N11: g
B13: Correo del comprador: | E13: g
B15: Fechas estimadas
E17: Fecha creación solicitud cotización: | I17: 2016-09-02
B19: Artículos Solicitud de Cotización
B24: Segmento | D24: =IF(B25="","No Aplica",VLOOKUP(B25,Listas!$A$2:$B$18,2,0)) -> Cilindraje | H24: Intervalo de precio | L24: Unidades
B25: Motocicleta Doble Proposito Tipo Enduro | D25: 226cc - 274cc | H25: Intervalo de precio 2 | L25: 2
B27: Adecuaciones y Accesorios
B28: Descripción | H28: Cantidad | J28: Sí / No | K28: Observaciones
B29: Defensa | J29: NO
B30: Pintura (100% del exterior de la Motocicleta, Cuatrimoto o Motocarro) | J30: NO
B31: Adhesivos de emblemas (por metro cuadrado) | J31: NO
B32: Sirena Compacta | J32: NO
B33: Luces de Emergencia | J33: NO
B34: Exploradoras | J34: NO
B35: Casco abatible | J35: NO
B36: Casco cerrado | J36: NO
B37: Impermeables | J37: NO
B38: Chalecos reflectivos | J38: NO
B39: Rodilleras, coderas y guantes | J39: NO
B40: Maletero | J40: NO
B41: Chaqueta antifricción | J41: NO
B42: Body armor | J42: NO
B43: Maleteros Laterales | J43: NO
B44: Parrilla | J44: NO
B46: Mantenimiento Preventivo
B47: Descripción | N47: Sí / No
B48: 24 mil Km | N48: SI
B49: 36 mil Km | N49: NO
B50: 48 mil Km | N50: NO
B51: 60 mil Km | N51: NO
B53: Requerimientos de la Matricula
B54: Requerimientos de la Matricula
B56: Lugar de Entrega
B57: Ciudad de Entrega | N57: Unidades
B58: Andes | N58: 2
B59: Si requiere agregue o elimine filas
B61: Incluye SOAT
B62: Sí / No | I62: Vigencia
B63: SI | I63: 12 meses
B65: Gravámenes adicionales (estampillas)
B67: Si los hay, indique los gravámenes adicionales (estampilllas) a los que está sujeta la Orden de Compra. Son gravámens adiconales por ejemplo; estampillas y demás impuestos territoriales.
B68: Los impuestos como ICA y retención en la fuente NO son gravámenes adicionales.
B70: No. | C70: Descripción | N70: % Gravámen
B71: 1 | C71: Descripción | N71: 0.02
J73: Total Gravámenes adicionales | N73: =SUM(N71:O71) -> 0.02

Sheet Cotizacion
B1: Cotización
B3: Acuerdo Marco Motos
B5: Información de la Entidad Compradora | P5: Proveedor
B7: Nombre de la Entidad: | K7: NIT: | P7: Nombre Proveedor: | Q7: Suzuki Motor De Colombia S.A.
B9: Dirección de la Entidad: | K9: Municipio: | P9: Nit Proveedor:
B11: Nombre del Comprador: | K11: Teléfono:
B13: Correo del comprador:
B15: Fechas estimadas | P15: Cotización
P16: Cod Facecolda | Q16: Marca | R16: Referencia
E17: Fecha creación solicitud cotización: | I17: 2018-09-17 | P17: =VLOOKUP($R$17,[2]Consolidado!$C:$L,10,0) -> 8817145 | Q17: =VLOOKUP($R$17,[2]Consolidado!$C:$L,9,0) -> Suzuki | R17: Suzuki GN 125 NOVA MT 125CC1
B19: Artículos de Cotización | P19: Cotización
B24: Segmento | D24: =IF(B25="","No Aplica",VLOOKUP(B25,Listas!$A$2:$B$18,2,0)) -> No Aplica | H24: Intervalo de precio | L24: Unidades | P24: valor unidad (Precio en el Catálogo incluido el descuento por volumen ) | Q24: valor total | R24: % descuento adicional | S24: Total con Descuento
P25: =VLOOKUP(SUBSTITUTE(SUBSTITUTE(SUBSTITUTE($B$25&$D$25&$H$25,".",""),"-","")," ","")&$R$17&$Q$7,Consolidado!$A$2:$AU$100,IF(L25=1,18,IF(AND(L25>=2,L25<=10),20,IF(AND(L25>=11,L25<=20),22,IF(AND(L25>=21,L25<=30),24,IF(AND(L25>=31,L25<=40),26,28))))),0) ->  | Q25: =L25*P25 ->  | S25: =Q25*(1-R25) -> 

Sheet ActFasecolda (hidden)
A1: Directorio | B1: C:\Users\laura.penuela\Desktop\Equipo Antiguo\Escritorio\Motocicletas\Guia_Excel_268.xls
D2: 1

Sheet FormatosIndividuales (hidden)
B2: Valor de la Matricula | G2: Lugar de Entrega | L2: Cuadro Resumen
G3: Valor Ciudad de Entrega | L3: Descripción | M3: Valor
L4: Valor Total Motocicletas, Cuatrimotos o Motocarros: | M4: =ROUND($R$25,0) -> 0
L5: Valor Total Accesorios y Adecuaciones: | M5: =ROUND(SUM(M$29:M$44),0) -> 0
G6: SOAT | L6: Valor Total Mantenimiento Preventivo: | M6: =ROUND(SUM(M$48:M$51),0) -> 0
G7: Valor del SOAT | I7: $ Gravamen | L7: Valor Total Matricula: | M7: =ROUND($O$54,0) -> 0
B8: valor unidad (Precio en el Catálogo incluido el descuento por volumen ) | C8: valor total | D8: % descuento adicional | E8: Total con Descuento | L8: Valor Total Soat: | M8: =ROUND($K$65,0) -> 0
E9: =C9*(1-D9) -> 0 | L9: Valor Gravamenes Adicionales: | M9: =ROUND($K$65,0) -> 0
L11: Descripción de la Moto
L14: Total | M14: =ROUND(SUM(M4:M8),0) -> 0

Sheet Listas (hidden)
A1: segmento | B1: TipCaracteristica | C1: Proveedores | D1: SISOAT | E1: Campo2 | F1: Campo3 | G1: Vehiculos | H1: CiudadesEntrega | I1: Unidad
A2: Cuatrimotos | B2: Cilindraje | C2: Suzuki Motor De Colombia S.A. | D2: 12 meses | E2: 275cc - 324cc | F2: Intervalo de precio 1 | G2: AKT AK 125 NKD FRENO DISCO MT 125CC1 | H2: Abejorral | I2: 1
A3: Motocarro | B3: Deposito de carga | D3: 13 meses | E3: 124cc - 134cc | F3: Intervalo de precio 2 | G3: Suzuki GN 125 NOVA MT 125CC1 | H3: Ábrego | I3: 2
A4: Motocicleta Deportiva y Calle | B4: Cilindraje | D4: 14 meses | E4: 135cc - 165cc | G4: Yamaha XT 660 R MT 660CC1 | H4: Abriaquí | I4: 3
A5: Motocicleta Doble Proposito Tipo Enduro | B5: Cilindraje | D5: 15 meses | E5: 166cc - 190cc | H5: Acacías | I5: 4
A6: Motocicleta Doble Proposito Tipo Turismo | B6: Cilindraje | D6: 16 meses | E6: 191 cc - 220cc | H6: Acandí | I6: 5
A7: Motocicleta Electrica | B7: Kilovatios | D7: 17 meses | E7: 221cc - 274cc | H7: Acevedo | I7: 6
A8: Motocicleta Moped | B8: Cilindraje | D8: 18 meses | E8: 325cc - 525cc | H8: Achí | I8: 7
A9: Motocicleta Scooter | B9: Cilindraje | D9: 19 meses | E9: 90cc - 123cc | H9: Agrado | I9: 8
D10: 20 meses | H10: Agua De Dios | I10: 9
D11: 21 meses | H11: Aguachica | I11: 10
D12: 22 meses | H12: Aguada | I12: 11
D13: 23 meses | H13: Aguadas | I13: 12
D14: 24 meses | H14: Aguazul | I14: 13
D15: 25 meses | H15: Agustín Codazzi | I15: 14
D16: 26 meses | H16: Aipe | I16: 15
D17: 27 meses | H17: Albán | I17: 16
D18: 28 meses | H18: Albania | I18: 17
D19: 29 meses | H19: Alcalá | I19: 18
D20: 30 meses | H20: Aldana | I20: 19
D21: 31 meses | H21: Alejandría | I21: 20
D22: 32 meses | H22: Algarrobo | I22: 21
D23: 33 meses | H23: Algeciras | I23: 22
D24: 34 meses | H24: Almaguer | I24: 23
D25: 35 meses | H25: Almeida | I25: 24
D26: 36 meses | H26: Alpujarra | I26: 25
D27: 37 meses | H27: Altamira | I27: 26
D28: 38 meses | H28: Alto Baudó | I28: 27
D29: 39 meses | H29: Altos Del Rosario | I29: 28
D30: 40 meses | H30: Alvarado | I30: 29
D31: 41 meses | H31: Amagá | I31: 30
D32: 42 meses | H32: Amalfi | I32: 31
D33: 43 meses | H33: Ambalema | I33: 32
D34: 44 meses | H34: Anapoima | I34: 33
D35: 45 meses | H35: Ancuyá | I35: 34
D36: 46 meses | H36: Andalucía | I36: 35
D37: 47 meses | H37: Andes | I37: 36
D38: 48 meses | H38: Angelópolis | I38: 37
D39: 49 meses | H39: Angostura | I39: 38
D40: 50 meses | H40: Anolaima | I40: 39
D41: 51 meses | H41: Anorí | I41: 40
D42: 52 meses | H42: Anserma | I42: 41
D43: 53 meses | H43: Ansermanuevo | I43: 42
D44: 54 meses | H44: Anzá | I44: 43
D45: 55 meses | H45: Anzoátegui | I45: 44
D46: 56 meses | H46: Apartadó | I46: 45
D47: 57 meses | H47: Apía | I47: 46
D48: 58 meses | H48: Apulo | I48: 47
D49: 59 meses | H49: Aquitania | I49: 48
D50: 60 meses | H50: Aracataca | I50: 49
D51: 61 meses | H51: Aranzazu | I51: 50
D52: 62 meses | H52: Aratoca | I52: 51
D53: 63 meses | H53: Arauca | I53: 52
D54: 64 meses | H54: Arauquita | I54: 53
D55: 65 meses | H55: Arbeláez | I55: 54
D56: 66 meses | H56: Arboleda | I56: 55
D57: 67 meses | H57: Arboledas | I57: 56
D58: 68 meses | H58: Arboletes | I58: 57
D59: 69 meses | H59: Arcabuco | I59: 58
D60: 70 meses | H60: Arenal | I60: 59
D61: 71 meses | H61: Argelia | I61: 60
D62: 72 meses | H62: Ariguaní | I62: 61
D63: 73 meses | H63: Arjona | I63: 62
D64: 74 meses | H64: Armenia | I64: 63
D65: 75 meses | H65: Armero Guayabal | I65: 64
D66: 76 meses | H66: Arroyohondo | I66: 65
D67: 77 meses | H67: Astrea | I67: 66
D68: 78 meses | H68: Ataco | I68: 67
D69: 79 meses | H69: Atrato | I69: 68
D70: 80 meses | H70: Ayapel | I70: 69
D71: 81 meses | H71: Bagadó | I71: 70
D72: 82 meses | H72: Bahía Solano | I72: 71
D73: 83 meses | H73: Bajo Baudó | I73: 72
D74: 84 meses | H74: Balboa | I74: 73
D75: 85 meses | H75: Baranoa | I75: 74
D76: 86 meses | H76: Baraya | I76: 75
D77: 87 meses | H77: Barbacoas | I77: 76
D78: 88 meses | H78: Barbosa | I78: 77
D79: 89 meses | H79: Barichara | I79: 78
D80: 90 meses | H80: Barranca De Upía | I80: 79
D81: 91 meses | H81: Barrancabermeja | I81: 80
D82: 92 meses | H82: Barrancas | I82: 81
D83: 93 meses | H83: Barranco De Loba | I83: 82
D84: 94 meses | H84: Barranco Minas | I84: 83
D85: 95 meses | H85: Barranquilla | I85: 84
D86: 96 meses | H86: Becerril | I86: 85
D87: 97 meses | H87: Belalcázar | I87: 86
D88: 98 meses | H88: Belén | I88: 87
D89: 99 meses | H89: Belén De Los Andaquíes | I89: 88
D90: 100 meses | H90: Belén De Umbría | I90: 89
H91: Bello | I91: 90
H92: Belmira | I92: 91
H93: Beltrán | I93: 92
H94: Berbeo | I94: 93
H95: Betania | I95: 94
H96: Betéitiva | I96: 95
H97: Betulia | I97: 96
H98: Bituima | I98: 97
H99: Boavita | I99: 98
H100: Bochalema | I100: 99
H101: Bogotá, D.C. | I101: 100
H102: Bojacá | I102: 101
H103: Bojayá | I103: 102
H104: Bolívar | I104: 103
H105: Bosconia | I105: 104
H106: Boyacá | I106: 105
H107: Briceño | I107: 106
H108: Bucaramanga | I108: 107
H109: Bucarasica | I109: 108
H110: Buenaventura | I110: 109
H111: Buenavista | I111: 110
H112: Buenos Aires | I112: 111
H113: Buesaco | I113: 112
H114: Bugalagrande | I114: 113
H115: Buriticá | I115: 114
H116: Busbanzá | I116: 115
H117: Cabrera | I117: 116
H118: Cabuyaro | I118: 117
H119: Cacahual | I119: 118
H120: Cáceres | I120: 119
H121: Cachipay | I121: 120
H122: Cáchira | I122: 121
H123: Cácota | I123: 122
H124: Caicedo | I124: 123
H125: Caicedonia | I125: 124
H126: Caimito | I126: 125
H127: Cajamarca | I127: 126
H128: Cajibío | I128: 127
H129: Cajicá | I129: 128
H130: Calamar | I130: 129
H131: Calarcá | I131: 130
H132: Caldas | I132: 131
H133: Caldono | I133: 132
H134: Cali | I134: 133
H135: California | I135: 134
H136: Calima | I136: 135
H137: Caloto | I137: 136
H138: Campamento | I138: 137
H139: Campo De La Cruz | I139: 138
H140: Campoalegre | I140: 139
H141: Campohermoso | I141: 140
H142: Canalete | I142: 141
H143: Cañasgordas | I143: 142
H144: Candelaria | I144: 143
H145: Cantagallo | I145: 144
H146: Caparrapí | I146: 145
H147: Capitanejo | I147: 146
H148: Cáqueza | I148: 147
H149: Caracolí | I149: 148
H150: Caramanta | I150: 149
H151: Carcasí | I151: 150
H152: Carepa | I152: 151
H153: Carmen De Apicalá | I153: 152
H154: Carmen De Carupa | I154: 153
H155: Carmen Del Darién | I155: 154
H156: Carolina | I156: 155
H157: Cartagena De Indias | I157: 156
H158: Cartagena Del Chairá | I158: 157
H159: Cartago | I159: 158
H160: Carurú | I160: 159
H161: Casabianca | I161: 160
H162: Castilla La Nueva | I162: 161
H163: Caucasia | I163: 162
H164: Cepitá | I164: 163
H165: Cereté | I165: 164
H166: Cerinza | I166: 165
H167: Cerrito | I167: 166
H168: Cerro De San Antonio | I168: 167
H169: Cértegui | I169: 168
H170: Chachagüí | I170: 169
H171: Chaguaní | I171: 170
H172: Chalán | I172: 171
H173: Chámeza | I173: 172
H174: Chaparral | I174: 173
H175: Charalá | I175: 174
H176: Charta | I176: 175
H177: Chía | I177: 176
H178: Chigorodó | I178: 177
H179: Chima | I179: 178
H180: Chimá | I180: 179
H181: Chimichagua | I181: 180
H182: Chinácota | I182: 181
H183: Chinavita | I183: 182
H184: Chinchiná | I184: 183
H185: Chinú | I185: 184
H186: Chipaque | I186: 185
H187: Chipatá | I187: 186
H188: Chiquinquirá | I188: 187
H189: Chíquiza | I189: 188
H190: Chiriguaná | I190: 189
H191: Chiscas | I191: 190
H192: Chita | I192: 191
H193: Chitagá | I193: 192
H194: Chitaraque | I194: 193
H195: Chivatá | I195: 194
H196: Chivolo | I196: 195
H197: Chivor | I197: 196
H198: Choachí | I198: 197
H199: Chocontá | I199: 198
H200: Cicuco | I200: 199
... 838 more rows

Sheet temp (hidden)
A1: ultrallave | B1: VehiculosSeleccion | C1: Marca-Referencia 1 2 3 | D1: Proveedor | E1: Segmento | F1: Cilindraje | G1: Adecuación | H1: Intervalo de precio (en millones $) | I1: Combustible | J1: Referencia | K1: Marca | L1: Código Fasecolda | M1: referencia 1 | N1: referencia 2 | O1: referencia 3 | P1: Precio referencia (2018) | Q1: 1 | R1: Precio final de 1 und | S1: 2 a 10 | T1: Precio final de 2 a 10 und | U1: 11 a 20 | V1: Precio final de 11 a 20 und | W1: 21 a 30 | X1: Precio final de 21 a 30 und | Y1: 31 a 40 | Z1: Precio final de 31 a 40 und | AA1: Mayor a 40 | AB1: Precio final de mayor a 40 und | AC1: Precio del Mantenimiento Preventivo | AD1: Defensa | AE1: Pintura (100% del exterior de la Motocicleta, Cuatrimoto o Motocarro) | AF1: Adhesivos de emblemas (por metro cuadrado) | AG1: Sirena Compacta | AH1: Luces de Emergencia | AI1: Exploradoras | AJ1: Casco abatible | AK1: Casco cerrado | AL1: Impermeables | AM1: Chalecos reflectivos | AN1: Rodilleras, coderas y guantes | AO1: Maletero | AP1: Chaqueta antifricción | AQ1: Body armor | AR1: Maleteros Laterales | AS1: Parrilla | AT1: Inactivo | AU1: VrActualizado
A2: Cuatrimotos301cc425ccIntervalodeprecio2Kymco MAXXER 375 AT 366CC 4X41Autotecnica Colombiana S.A.S | B2: Cuatrimotos301cc425ccIntervalodeprecio2 | C2: Kymco MAXXER 375 AT 366CC 4X41 | D2: Autotecnica Colombiana S.A.S | E2: Cuatrimotos | F2: 301cc - 425cc | H2: Intervalo de precio 2 | I2: Gasolina | K2: Kymco | L2: 10119004 | M2: MAXXER | N2: 375 | O2: AT 366CC 4X4 | P2: 17000000 | Q2: 0.06 | R2: 15980000 | S2: 0.06 | T2: 15980000 | U2: 0.06 | V2: 15980000 | W2: 0.06 | X2: 15980000 | Y2: 0.06 | Z2: 15980000 | AA2: 0.06 | AB2: 15980000 | AC2: 2455000 | AD2: 118916.0544 | AE2: 1357200 | AF2: 56299.0688 | AG2: 356642 | AH2: 284559.6 | AI2: 195000 | AJ2: 223184 | AK2: 153212.8 | AL2: 307230.2688 | AM2: 96512 | AN2: 124358.1248 | AO2: 129438.2752 | AP2: 422240 | AQ2: 64999.6256 | AR2: 259376 | AS2: 101036 | AT2: 1

Sheet solCotizacionCSV (hidden)
A1: Tipo (servicio o artÃ­culo) | B1: Cantidad | C1: CÃ³digo de unidad de medida* | D1: PosiciÃ³n | E1: Precio base | F1: Divisa | G1: DescripciÃ³n | H1: MercancÃ­a
A2: item | B2: 1 | C2: Und | E2: "0" | F2: COP | G2: mot01--Moto C10
A3: item | B3: 1 | C3: Und | E3: "0" | F3: COP | G3: mot01--Adecuaciones y Accesorios Adicionales
A4: item | B4: 1 | C4: Und | E4: "0" | F4: COP | G4: mot01--Mantenimiento Preventivo
A5: item | B5: 1 | C5: Und | E5: "0" | F5: COP | G5: mot01--Requerimientos de la Matricula
A6: item | B6: 1 | C6: Und | E6: "0" | F6: COP | G6: mot01--SOAT
A7: item | B7: 1 | C7: Und | E7: "0" | F7: COP | G7: mot01--GravÃ¡menes adicionales

Sheet Accesorios (hidden)
A1: segmento | B1: Descripción | H1: Cantidad de Motos | J1: Sí / No | K1: Observaciones
A2: Cuatrimotos | B2: Defensa | J2: NO
A3: Cuatrimotos | B3: Pintura (100% del exterior de la Motocicleta, Cuatrimoto o Motocarro) | J3: NO
A4: Cuatrimotos | B4: Adhesivos de emblemas (por metro cuadrado) | J4: NO
A5: Cuatrimotos | B5: Sirena Compacta | J5: NO
A6: Cuatrimotos | B6: Luces de Emergencia | J6: NO
A7: Cuatrimotos | B7: Exploradoras | J7: NO
A8: Cuatrimotos | B8: Casco abatible | J8: NO
A9: Cuatrimotos | B9: Casco cerrado | J9: NO
A10: Cuatrimotos | B10: Impermeables | J10: NO
A11: Cuatrimotos | B11: Chalecos reflectivos | J11: NO
A12: Cuatrimotos | B12: Rodilleras, coderas y guantes | J12: NO
A13: Cuatrimotos | B13: Maletero | J13: NO
A14: Cuatrimotos | B14: Chaqueta antifricción | J14: NO
A15: Cuatrimotos | B15: Body armor | J15: NO
A16: Cuatrimotos | B16: Maleteros Laterales | J16: NO
A17: Cuatrimotos | B17: Parrilla | J17: NO
A18: Motocarro | B18: Defensa | J18: NO
A19: Motocarro | B19: Pintura (100% del exterior de la Motocicleta, Cuatrimoto o Motocarro) | J19: NO
A20: Motocarro | B20: Adhesivos de emblemas (por metro cuadrado) | J20: NO
A21: Motocarro | B21: Sirena Compacta | J21: NO
A22: Motocarro | B22: Luces de Emergencia | J22: NO
A23: Motocarro | B23: Exploradoras | J23: NO
A24: Motocarro | B24: Casco abatible | J24: NO
A25: Motocarro | B25: Casco cerrado | J25: NO
A26: Motocarro | B26: Impermeables | J26: NO
A27: Motocarro | B27: Chalecos reflectivos | J27: NO
A28: Motocarro | B28: Rodilleras, coderas y guantes | J28: NO
A29: Motocarro | B29: Maletero | J29: NO
A30: Motocarro | B30: Chaqueta antifricción | J30: NO
A31: Motocarro | B31: Body armor | J31: NO
A32: Motocarro | B32: Maleteros Laterales | J32: NO
A33: Motocarro | B33: Parrilla | J33: NO
A34: Motocicleta Deportiva y Calle | B34: Defensa | J34: NO
A35: Motocicleta Deportiva y Calle | B35: Pintura (100% del exterior de la Motocicleta, Cuatrimoto o Motocarro) | J35: NO
A36: Motocicleta Deportiva y Calle | B36: Adhesivos de emblemas (por metro cuadrado) | J36: NO
A37: Motocicleta Deportiva y Calle | B37: Sirena Compacta | J37: NO
A38: Motocicleta Deportiva y Calle | B38: Luces de Emergencia | J38: NO
A39: Motocicleta Deportiva y Calle | B39: Exploradoras | J39: NO
A40: Motocicleta Deportiva y Calle | B40: Casco abatible | J40: NO
A41: Motocicleta Deportiva y Calle | B41: Casco cerrado | J41: NO
A42: Motocicleta Deportiva y Calle | B42: Impermeables | J42: NO
A43: Motocicleta Deportiva y Calle | B43: Chalecos reflectivos | J43: NO
A44: Motocicleta Deportiva y Calle | B44: Rodilleras, coderas y guantes | J44: NO
A45: Motocicleta Deportiva y Calle | B45: Maletero | J45: NO
A46: Motocicleta Deportiva y Calle | B46: Chaqueta antifricción | J46: NO
A47: Motocicleta Deportiva y Calle | B47: Body armor | J47: NO
A48: Motocicleta Deportiva y Calle | B48: Maleteros Laterales | J48: NO
A49: Motocicleta Deportiva y Calle | B49: Parrilla | J49: NO
A50: Motocicleta Doble Proposito Tipo Enduro | B50: Defensa | J50: NO
A51: Motocicleta Doble Proposito Tipo Enduro | B51: Pintura (100% del exterior de la Motocicleta, Cuatrimoto o Motocarro) | J51: NO
A52: Motocicleta Doble Proposito Tipo Enduro | B52: Adhesivos de emblemas (por metro cuadrado) | J52: NO
A53: Motocicleta Doble Proposito Tipo Enduro | B53: Sirena Compacta | J53: NO
A54: Motocicleta Doble Proposito Tipo Enduro | B54: Luces de Emergencia | J54: NO
A55: Motocicleta Doble Proposito Tipo Enduro | B55: Exploradoras | J55: NO
A56: Motocicleta Doble Proposito Tipo Enduro | B56: Casco abatible | J56: NO
A57: Motocicleta Doble Proposito Tipo Enduro | B57: Casco cerrado | J57: NO
A58: Motocicleta Doble Proposito Tipo Enduro | B58: Impermeables | J58: NO
A59: Motocicleta Doble Proposito Tipo Enduro | B59: Chalecos reflectivos | J59: NO
A60: Motocicleta Doble Proposito Tipo Enduro | B60: Rodilleras, coderas y guantes | J60: NO
A61: Motocicleta Doble Proposito Tipo Enduro | B61: Maletero | J61: NO
A62: Motocicleta Doble Proposito Tipo Enduro | B62: Chaqueta antifricción | J62: NO
A63: Motocicleta Doble Proposito Tipo Enduro | B63: Body armor | J63: NO
A64: Motocicleta Doble Proposito Tipo Enduro | B64: Maleteros Laterales | J64: NO
A65: Motocicleta Doble Proposito Tipo Enduro | B65: Parrilla | J65: NO
A66: Motocicleta Doble Proposito Tipo Turismo | B66: Defensa | J66: NO
A67: Motocicleta Doble Proposito Tipo Turismo | B67: Pintura (100% del exterior de la Motocicleta, Cuatrimoto o Motocarro) | J67: NO
A68: Motocicleta Doble Proposito Tipo Turismo | B68: Adhesivos de emblemas (por metro cuadrado) | J68: NO
A69: Motocicleta Doble Proposito Tipo Turismo | B69: Sirena Compacta | J69: NO
A70: Motocicleta Doble Proposito Tipo Turismo | B70: Luces de Emergencia | J70: NO
A71: Motocicleta Doble Proposito Tipo Turismo | B71: Exploradoras | J71: NO
A72: Motocicleta Doble Proposito Tipo Turismo | B72: Casco abatible | J72: NO
A73: Motocicleta Doble Proposito Tipo Turismo | B73: Casco cerrado | J73: NO
A74: Motocicleta Doble Proposito Tipo Turismo | B74: Impermeables | J74: NO
A75: Motocicleta Doble Proposito Tipo Turismo | B75: Chalecos reflectivos | J75: NO
A76: Motocicleta Doble Proposito Tipo Turismo | B76: Rodilleras, coderas y guantes | J76: NO
A77: Motocicleta Doble Proposito Tipo Turismo | B77: Maletero | J77: NO
A78: Motocicleta Doble Proposito Tipo Turismo | B78: Chaqueta antifricción | J78: NO
A79: Motocicleta Doble Proposito Tipo Turismo | B79: Body armor | J79: NO
A80: Motocicleta Doble Proposito Tipo Turismo | B80: Maleteros Laterales | J80: NO
A81: Motocicleta Doble Proposito Tipo Turismo | B81: Parrilla | J81: NO
A82: Motocicleta Electrica | B82: Defensa | J82: NO
A83: Motocicleta Electrica | B83: Pintura (100% del exterior de la Motocicleta, Cuatrimoto o Motocarro) | J83: NO
A84: Motocicleta Electrica | B84: Adhesivos de emblemas (por metro cuadrado) | J84: NO
A85: Motocicleta Electrica | B85: Sirena Compacta | J85: NO
A86: Motocicleta Electrica | B86: Luces de Emergencia | J86: NO
A87: Motocicleta Electrica | B87: Exploradoras | J87: NO
A88: Motocicleta Electrica | B88: Casco abatible | J88: NO
A89: Motocicleta Electrica | B89: Casco cerrado | J89: NO
A90: Motocicleta Electrica | B90: Impermeables | J90: NO
A91: Motocicleta Electrica | B91: Chalecos reflectivos | J91: NO
A92: Motocicleta Electrica | B92: Rodilleras, coderas y guantes | J92: NO
A93: Motocicleta Electrica | B93: Maletero | J93: NO
A94: Motocicleta Electrica | B94: Chaqueta antifricción | J94: NO
A95: Motocicleta Electrica | B95: Body armor | J95: NO
A96: Motocicleta Electrica | B96: Maleteros Laterales | J96: NO
A97: Motocicleta Electrica | B97: Parrilla | J97: NO
A98: Motocicleta Moped | B98: Defensa | J98: NO
A99: Motocicleta Moped | B99: Pintura (100% del exterior de la Motocicleta, Cuatrimoto o Motocarro) | J99: NO
A100: Motocicleta Moped | B100: Adhesivos de emblemas (por metro cuadrado) | J100: NO
A101: Motocicleta Moped | B101: Sirena Compacta | J101: NO
A102: Motocicleta Moped | B102: Luces de Emergencia | J102: NO
A103: Motocicleta Moped | B103: Exploradoras | J103: NO
A104: Motocicleta Moped | B104: Casco abatible | J104: NO
A105: Motocicleta Moped | B105: Casco cerrado | J105: NO
A106: Motocicleta Moped | B106: Impermeables | J106: NO
A107: Motocicleta Moped | B107: Chalecos reflectivos | J107: NO
A108: Motocicleta Moped | B108: Rodilleras, coderas y guantes | J108: NO
A109: Motocicleta Moped | B109: Maletero | J109: NO
A110: Motocicleta Moped | B110: Chaqueta antifricción | J110: NO
A111: Motocicleta Moped | B111: Body armor | J111: NO
A112: Motocicleta Moped | B112: Maleteros Laterales | J112: NO
A113: Motocicleta Moped | B113: Parrilla | J113: NO
A114: Motocicleta Scooter | B114: Defensa | J114: NO
A115: Motocicleta Scooter | B115: Pintura (100% del exterior de la Motocicleta, Cuatrimoto o Motocarro) | J115: NO
A116: Motocicleta Scooter | B116: Adhesivos de emblemas (por metro cuadrado) | J116: NO
A117: Motocicleta Scooter | B117: Sirena Compacta | J117: NO
A118: Motocicleta Scooter | B118: Luces de Emergencia | J118: NO
A119: Motocicleta Scooter | B119: Exploradoras | J119: NO
A120: Motocicleta Scooter | B120: Casco abatible | J120: NO
A121: Motocicleta Scooter | B121: Casco cerrado | J121: NO
A122: Motocicleta Scooter | B122: Impermeables | J122: NO
A123: Motocicleta Scooter | B123: Chalecos reflectivos | J123: NO
A124: Motocicleta Scooter | B124: Rodilleras, coderas y guantes | J124: NO
A125: Motocicleta Scooter | B125: Maletero | J125: NO
A126: Motocicleta Scooter | B126: Chaqueta antifricción | J126: NO
A127: Motocicleta Scooter | B127: Body armor | J127: NO
A128: Motocicleta Scooter | B128: Maleteros Laterales | J128: NO
A129: Motocicleta Scooter | B129: Parrilla | J129: NO

Sheet TempAccesorios (hidden)
A1: Motocicleta Deportiva y Calle | B1: Defensa | J1: NO
A2: Motocicleta Deportiva y Calle | B2: Pintura (100% del exterior de la Motocicleta, Cuatrimoto o Motocarro) | J2: NO
A3: Motocicleta Deportiva y Calle | B3: Adhesivos de emblemas (por metro cuadrado) | J3: NO
A4: Motocicleta Deportiva y Calle | B4: Sirena Compacta | J4: NO
A5: Motocicleta Deportiva y Calle | B5: Luces de Emergencia | J5: NO
A6: Motocicleta Deportiva y Calle | B6: Exploradoras | J6: NO
A7: Motocicleta Deportiva y Calle | B7: Casco abatible | J7: NO
A8: Motocicleta Deportiva y Calle | B8: Casco cerrado | J8: NO
A9: Motocicleta Deportiva y Calle | B9: Impermeables | J9: NO
A10: Motocicleta Deportiva y Calle | B10: Chalecos reflectivos | J10: NO
A11: Motocicleta Deportiva y Calle | B11: Rodilleras, coderas y guantes | J11: NO
A12: Motocicleta Deportiva y Calle | B12: Maletero | J12: NO
A13: Motocicleta Deportiva y Calle | B13: Chaqueta antifricción | J13: NO
A14: Motocicleta Deportiva y Calle | B14: Body armor | J14: NO
A15: Motocicleta Deportiva y Calle | B15: Maleteros Laterales | J15: NO
A16: Motocicleta Deportiva y Calle | B16: Parrilla | J16: NO

Sheet Consolidado (hidden)
A1: ultrallave | B1: VehiculosSeleccion | C1: Marca-Referencia 1 2 3 | D1: Proveedor | E1: Segmento | F1: Cilindraje | G1: Adecuación | H1: Intervalo de precio (en millones $) | I1: Combustible | J1: Referencia | K1: Marca | L1: Código Fasecolda | M1: referencia 1 | N1: referencia 2 | O1: referencia 3 | P1: Precio referencia (2018) | Q1: 1 | R1: Precio final de 1 und | S1: 2 a 10 | T1: Precio final de 2 a 10 und | U1: 11 a 20 | V1: Precio final de 11 a 20 und | W1: 21 a 30 | X1: Precio final de 21 a 30 und | Y1: 31 a 40 | Z1: Precio final de 31 a 40 und | AA1: Mayor a 40 | AB1: Precio final de mayor a 40 und | AC1: Precio del Mantenimiento Preventivo | AD1: Defensa | AE1: Pintura (100% del exterior de la Motocicleta, Cuatrimoto o Motocarro) | AF1: Adhesivos de emblemas (por metro cuadrado) | AG1: Sirena Compacta | AH1: Luces de Emergencia | AI1: Exploradoras | AJ1: Casco abatible | AK1: Casco cerrado | AL1: Impermeables | AM1: Chalecos reflectivos | AN1: Rodilleras, coderas y guantes | AO1: Maletero | AP1: Chaqueta antifricción | AQ1: Body armor | AR1: Maleteros Laterales | AS1: Parrilla | AT1: Inactivo | AU1: VrActualizado | AV1: cod
A2: =B2&C2&D2 -> Cuatrimotos200cc300ccIntervalodeprecio1Kymco MAXXER 250 AT 250CC0Autotecnica Colombiana S.A.S | B2: =SUBSTITUTE(SUBSTITUTE(SUBSTITUTE(E2&F2&H2,".","")," ",""),"-","") -> Cuatrimotos200cc300ccIntervalodeprecio1 | C2: =K2&" "&M2&" "&N2&" "&O2&AT2 -> Kymco MAXXER 250 AT 250CC0 | D2: Autotecnica Colombiana S.A.S | E2: Cuatrimotos | F2: 200cc - 300cc | H2: Intervalo de precio 1 | I2: Gasolina | K2: Kymco | L2: 10119002 | M2: MAXXER | N2: 250 | O2: AT 250CC | P2: 19000000 | Q2: 0.06 | R2: =$P2*(1-Q2) -> 17860000 | S2: 0.06 | T2: =$P2*(1-S2) -> 17860000 | U2: 0.06 | V2: =$P2*(1-U2) -> 17860000 | W2: 0.06 | X2: =$P2*(1-W2) -> 17860000 | Y2: 0.06 | Z2: =$P2*(1-Y2) -> 17860000 | AA2: 0.06 | AB2: =$P2*(1-AA2) -> 17860000 | AC2: 2862000 | AD2: 137800 | AE2: 1579400 | AF2: 65720 | AG2: 413400 | AH2: 328600 | AI2: 226840 | AJ2: 259700 | AK2: 174900 | AL2: 355100 | AM2: 111300 | AN2: 143100 | AO2: 148400 | AP2: 492900 | AQ2: 75789.56345 | AR2: 302100 | AS2: 116600 | AT2: 0 | AV2: C1
A3: =B3&C3&D3 -> Cuatrimotos200cc300ccIntervalodeprecio2Kawasaki BRUTE FORCE KVF300 AT 300CC 4X20Autotecnica Colombiana S.A.S | B3: =SUBSTITUTE(SUBSTITUTE(SUBSTITUTE(E3&F3&H3,".","")," ",""),"-","") -> Cuatrimotos200cc300ccIntervalodeprecio2 | C3: Kawasaki BRUTE FORCE KVF300 AT 300CC 4X20 | D3: Autotecnica Colombiana S.A.S | E3: Cuatrimotos | F3: 200cc - 300cc | H3: Intervalo de precio 2 | I3: Gasolina | K3: Kawasaki | L3: 4519010 | M3: BRUTE FORCE | N3: KVF300 | O3: AT 300CC 4X2 | P3: 18000000 | Q3: 0.06 | R3: =$P3*(1-Q3) -> 16920000 | S3: 0.06 | T3: =$P3*(1-S3) -> 16920000 | U3: 0.06 | V3: =$P3*(1-U3) -> 16920000 | W3: 0.06 | X3: =$P3*(1-W3) -> 16920000 | Y3: 0.06 | Z3: =$P3*(1-Y3) -> 16920000 | AA3: 0.06 | AB3: =$P3*(1-AA3) -> 16920000 | AC3: 5904200 | AD3: 137800 | AE3: 1229600 | AF3: 65720 | AG3: 413400 | AH3: 328600 | AI3: 226840 | AJ3: 259700 | AK3: 174900 | AL3: 355100 | AM3: 111300 | AN3: 143100 | AO3: 148400 | AP3: 492900 | AQ3: 75789.56345 | AR3: 302100 | AS3: 116600 | AT3: 0 | AV3: C2
A4: Cuatrimotos200cc300ccIntervalodeprecio2Suzuki LTF 250 MT 250CC 4X20Suzuki Motor De Colombia S.A. | B4: Cuatrimotos200cc300ccIntervalodeprecio2 | C4: Suzuki LTF 250 MT 250CC 4X20 | D4: Suzuki Motor De Colombia S.A. | E4: Cuatrimotos | F4: 200cc - 300cc | H4: Intervalo de precio 2 | I4: Gasolina | K4: Suzuki | L4: 8819013 | M4: LTF | N4: 250 | O4: MT 250CC 4X2 | P4: 18600000 | Q4: 0.001 | R4: 18581400 | S4: 0.001 | T4: 18581400 | U4: 0.001 | V4: 18581400 | W4: 0.001 | X4: 18581400 | Y4: 0.001 | Z4: 18581400 | AA4: 0.03 | AB4: 18042000 | AC4: 5733824.822 | AD4: NA | AE4: 1247620 | AF4: 489720 | AG4: NA | AH4: NA | AI4: 1302701.84 | AJ4: 231333.234 | AK4: 231333.234 | AL4: 412296.434 | AM4: 118465.6 | AN4: 191224 | AO4: 1155389.4 | AP4: 354464 | AQ4: 149248 | AR4: NA | AS4: NA | AT4: 0 | AV4: C2
A5: Cuatrimotos301cc425ccIntervalodeprecio2Kymco MAXXER 375 AT 366CC 4X40Autotecnica Colombiana S.A.S | B5: Cuatrimotos301cc425ccIntervalodeprecio2 | C5: Kymco MAXXER 375 AT 366CC 4X40 | D5: Autotecnica Colombiana S.A.S | E5: Cuatrimotos | F5: 301cc - 425cc | H5: Intervalo de precio 2 | I5: Gasolina | K5: Kymco | L5: 10119004 | M5: MAXXER | N5: 375 | O5: AT 366CC 4X4 | P5: 30000000 | Q5: 0.06 | R5: 28200000 | S5: 0.06 | T5: 28200000 | U5: 0.06 | V5: 28200000 | W5: 0.06 | X5: 28200000 | Y5: 0.06 | Z5: 28200000 | AA5: 0.06 | AB5: 28200000 | AC5: 2862000 | AD5: 137800 | AE5: 1579400 | AF5: 65720 | AG5: 413400 | AH5: 328600 | AI5: 226840 | AJ5: 259700 | AK5: 174900 | AL5: 355100 | AM5: 111300 | AN5: 143100 | AO5: 148400 | AP5: 492900 | AQ5: 75789.56345 | AR5: 302100 | AS5: 116600 | AT5: 0 | AV5: C3
A6: Cuatrimotos640cc799ccIntervalodeprecio2Honda TRX 680 FA AT 680CC 4X41Fanalca | B6: Cuatrimotos640cc799ccIntervalodeprecio2 | C6: Honda TRX 680 FA AT 680CC 4X41 | D6: Fanalca | E6: Cuatrimotos | F6: 640cc - 799cc | H6: Intervalo de precio 2 | I6: Gasolina | K6: Honda | L6: 3419004 | M6: TRX | N6: 680 FA | O6: AT 680CC 4X4 | P6: 42800000 | Q6: 0 | R6: 42800000 | S6: 0.02 | T6: 41944000 | U6: 0.03 | V6: 41516000 | W6: 0.04 | X6: 41088000 | Y6: 0.05 | Z6: 40660000 | AA6: 0.07 | AB6: 39804000 | AC6: 3755423 | AD6: 300000 | AE6: 100000 | AF6: 15000 | AG6: 442900 | AH6: 1030000 | AI6: 360000 | AJ6: 154500 | AK6: 154500 | AL6: 166600 | AM6: 83300 | AN6: 293550 | AO6: 116600 | AP6: 195700 | AQ6: 92700 | AR6: 210000 | AS6: 150000 | AT6: 1 | AV6: C4
A7: Cuatrimotos640cc799ccIntervalodeprecio3Kawasaki BRUTE FORCE KVF750HCF AT 750CC 4X40Autotecnica Colombiana S.A.S | B7: Cuatrimotos640cc799ccIntervalodeprecio3 | C7: Kawasaki BRUTE FORCE KVF750HCF AT 750CC 4X40 | D7: Autotecnica Colombiana S.A.S | E7: Cuatrimotos | F7: 640cc - 799cc | H7: Intervalo de precio 3 | I7: Gasolina | K7: Kawasaki | L7: 4519008 | M7: BRUTE FORCE | N7: KVF750HCF | O7: AT 750CC 4X4 | P7: 65000000 | Q7: 0.06 | R7: 61100000 | S7: 0.06 | T7: 61100000 | U7: 0.06 | V7: 61100000 | W7: 0.06 | X7: 61100000 | Y7: 0.06 | Z7: 61100000 | AA7: 0.06 | AB7: 61100000 | AC7: 7987100 | AD7: 137800 | AE7: 1314400 | AF7: 65720 | AG7: 413400 | AH7: 328600 | AI7: 226840 | AJ7: 259700 | AK7: 165000 | AL7: 355100 | AM7: 111300 | AN7: 143100 | AO7: 148400 | AP7: 492900 | AQ7: 75789.56345 | AR7: 302100 | AS7: 116600 | AT7: 0 | AV7: C5
A8: Cuatrimotos640cc799ccIntervalodeprecio1Suzuki KINGQUAD LTA 750 AT 750CC 4X40Suzuki Motor De Colombia S.A. | B8: Cuatrimotos640cc799ccIntervalodeprecio1 | C8: Suzuki KINGQUAD LTA 750 AT 750CC 4X40 | D8: Suzuki Motor De Colombia S.A. | E8: Cuatrimotos | F8: 640cc - 799cc | H8: Intervalo de precio 1 | I8: Gasolina | K8: Suzuki | L8: 8819011 | M8: KINGQUAD | N8: LTA 750 | O8: AT 750CC 4X4 | P8: 38500000 | Q8: 0.001 | R8: 38461500 | S8: 0.001 | T8: 38461500 | U8: 0.001 | V8: 38461500 | W8: 0.001 | X8: 38461500 | Y8: 0.001 | Z8: 38461500 | AA8: 0.03 | AB8: 37345000 | AT8: 0 | AV8: C6
A9: MotocarroPlatonIntervalodeprecio1AKT CARGUERO 200 ZW [BAJO] MT 200CC1Colombiana De Comercio S.A. Siglas Corbeta S.A. y/o Alkosto S.A. | B9: MotocarroPlatonIntervalodeprecio1 | C9: AKT CARGUERO 200 ZW [BAJO] MT 200CC1 | D9: Colombiana De Comercio S.A. Siglas Corbeta S.A. y/o Alkosto S.A. | E9: Motocarro | F9: Platon | H9: Intervalo de precio 1 | I9: Gasolina | K9: AKT | L9: 15919010 | M9: CARGUERO | N9: 200 ZW [BAJO] | O9: MT 200CC | P9: 10300000 | Q9: 0.08 | R9: 9476000 | S9: 0.08 | T9: 9476000 | U9: 0.08 | V9: 9476000 | W9: 0.08 | X9: 9476000 | Y9: 0.08 | Z9: 9476000 | AA9: 0.08 | AB9: 0 | AC9: 848000 | AD9: 0 | AE9: 307400 | AF9: 53000 | AG9: 307400 | AH9: 254400 | AI9: 95400 | AJ9: 93280 | AK9: 71020 | AL9: 31800 | AM9: 5300 | AN9: 190800 | AO9: 63600 | AP9: 151580 | AQ9: 106000 | AR9: 424000 | AS9: 53000 | AT9: 1 | AV9: C7
A10: MotocicletaDeportivayCalle90cc123ccIntervalodeprecio2TVS STAR [2] SPORT MT 100CC1Colombiana De Comercio S.A. Siglas Corbeta S.A. y/o Alkosto S.A. | B10: MotocicletaDeportivayCalle90cc123ccIntervalodeprecio2 | C10: TVS STAR [2] SPORT MT 100CC1 | D10: Colombiana De Comercio S.A. Siglas Corbeta S.A. y/o Alkosto S.A. | E10: Motocicleta Deportiva y Calle | F10: 90cc - 123cc | H10: Intervalo de precio 2 | I10: Gasolina | K10: TVS | L10: 29517005 | M10: STAR [2] | N10: SPORT | O10: MT 100CC | P10: 3400000 | Q10: 0.08 | R10: 3128000 | S10: 0.08 | T10: 3128000 | U10: 0.08 | V10: 3128000 | W10: 0.08 | X10: 3128000 | Y10: 0.08 | Z10: 3128000 | AA10: 0.08 | AB10: 3128000 | AC10: 800000 | AD10: 40000 | AE10: 190000 | AF10: 50000 | AG10: 290000 | AH10: 240000 | AI10: 90000 | AJ10: 88000 | AK10: 67000 | AL10: 30000 | AM10: 5000 | AN10: 180000 | AO10: 60000 | AP10: 143000 | AQ10: 100000 | AR10: 400000 | AS10: 50000 | AT10: 1 | AV10: C8
A11: MotocicletaDeportivayCalle90cc123ccIntervalodeprecio2Auteco BAJAJ BOXER CT100 MT 100CC1Autotecnica Colombiana S.A.S | B11: MotocicletaDeportivayCalle90cc123ccIntervalodeprecio2 | C11: Auteco BAJAJ BOXER CT100 MT 100CC1 | D11: Autotecnica Colombiana S.A.S | E11: Motocicleta Deportiva y Calle | F11: 90cc - 123cc | H11: Intervalo de precio 2 | I11: Gasolina | K11: Auteco | L11: 317015 | M11: BAJAJ | N11: BOXER CT100 | O11: MT 100CC | P11: 3600000 | Q11: 0.1 | R11: 3240000 | S11: 0.1 | T11: 3240000 | U11: 0.1 | V11: 3240000 | W11: 0.1 | X11: 3240000 | Y11: 0.1 | Z11: 3240000 | AA11: 0.1 | AB11: 3240000 | AC11: 1367400 | AD11: 137800 | AE11: 1229600 | AF11: 65720 | AG11: 413400 | AH11: 328600 | AI11: 226840 | AJ11: 259700 | AK11: 174900 | AL11: 355100 | AM11: 111300 | AN11: 143100 | AO11: 148400 | AP11: 492900 | AQ11: 75789.56345 | AR11: 302100 | AS11: 116600 | AT11: 1 | AV11: C8
A12: MotocicletaDeportivayCalle90cc123ccIntervalodeprecio3Suzuki AX4 110 MT 110CC1Suzuki Motor De Colombia S.A. | B12: MotocicletaDeportivayCalle90cc123ccIntervalodeprecio3 | C12: Suzuki AX4 110 MT 110CC1 | D12: Suzuki Motor De Colombia S.A. | E12: Motocicleta Deportiva y Calle | F12: 90cc - 123cc | H12: Intervalo de precio 3 | I12: Gasolina | K12: Suzuki | L12: 8817132 | M12: AX4 | N12: 110 | O12: MT 110CC | P12: 3700000 | Q12: 0.12 | R12: 3256000 | S12: 0.125 | T12: 3237500 | U12: 0.126 | V12: 3233800 | W12: 0.127 | X12: 3230100 | Y12: 0.129 | Z12: 3222700 | AA12: 0.13 | AB12: 3219000 | AC12: 1624388.814 | AD12: NA | AE12: 1 | AF12: 489720 | AG12: NA | AH12: NA | AI12: NA | AJ12: 231333.234 | AK12: 231333.234 | AL12: 412296.434 | AM12: 118465.6 | AN12: 191224 | AO12: 101372.04 | AP12: 354464 | AQ12: 149248 | AR12: NA | AS12: 183559.882 | AT12: 1 | AV12: C9
A13: MotocicletaDeportivayCalle90cc123ccIntervalodeprecio3Honda CB 110 MT 110CC1Fanalca | B13: MotocicletaDeportivayCalle90cc123ccIntervalodeprecio3 | C13: Honda CB 110 MT 110CC1 | D13: Fanalca | E13: Motocicleta Deportiva y Calle | F13: 90cc - 123cc | H13: Intervalo de precio 3 | I13: Gasolina | K13: Honda | L13: 3417135 | M13: CB | N13: 110 | O13: MT 110CC | P13: 4000000 | Q13: 0 | R13: 4000000 | S13: 0.04 | T13: 3840000 | U13: 0.06 | V13: 3760000 | W13: 0.08 | X13: 3680000 | Y13: 0.1 | Z13: 3600000 | AA13: 0.12 | AB13: 3520000 | AC13: 1442442.16 | AD13: 87550 | AE13: 80000 | AF13: 15000 | AG13: 442900 | AH13: 916300 | AI13: 360000 | AJ13: 154500 | AK13: 154500 | AL13: 166600 | AM13: 83300 | AN13: 293550 | AO13: 116600 | AP13: 154500 | AQ13: 92700 | AR13: 210000 | AS13: 46350 | AT13: 1 | AV13: C9
A14: MotocicletaDeportivayCalle90cc123ccIntervalodeprecio3Honda DREAM NEO MT 110CC1Fanalca | B14: MotocicletaDeportivayCalle90cc123ccIntervalodeprecio3 | C14: Honda DREAM NEO MT 110CC1 | D14: Fanalca | E14: Motocicleta Deportiva y Calle | F14: 90cc - 123cc | H14: Intervalo de precio 3 | I14: Gasolina | K14: Honda | L14: 3417171 | M14: DREAM | N14: NEO | O14: MT 110CC | P14: 3700000 | Q14: 0 | R14: 3700000 | S14: 0.04 | T14: 3552000 | U14: 0.06 | V14: 3478000 | W14: 0.08 | X14: 3404000 | Y14: 0.1 | Z14: 3330000 | AA14: 0.12 | AB14: 3256000 | AC14: 1452098 | AD14: 87550 | AE14: 80000 | AF14: 15000 | AG14: 442900 | AH14: 916300 | AI14: 360000 | AJ14: 154500 | AK14: 154500 | AL14: 166600 | AM14: 83300 | AN14: 293550 | AO14: 116600 | AP14: 154500 | AQ14: 92700 | AR14: 210000 | AS14: 46350 | AT14: 1 | AV14: C9
A15: MotocicletaDeportivayCalle124cc134ccIntervalodeprecio1AKT AK 125 NKD FRENO DISCO MT 125CC1Colombiana De Comercio S.A. Siglas Corbeta S.A. y/o Alkosto S.A. | B15: MotocicletaDeportivayCalle124cc134ccIntervalodeprecio1 | C15: AKT AK 125 NKD FRENO DISCO MT 125CC1 | D15: Colombiana De Comercio S.A. Siglas Corbeta S.A. y/o Alkosto S.A. | E15: Motocicleta Deportiva y Calle | F15: 124cc - 134cc | H15: Intervalo de precio 1 | I15: Gasolina | K15: AKT | L15: 15917038 | M15: AK | N15: 125 NKD FRENO DISCO | O15: MT 125CC | P15: 2800000 | Q15: 0.08 | R15: 2576000 | S15: 0.08 | T15: 2576000 | U15: 0.08 | V15: 2576000 | W15: 0.08 | X15: 2576000 | Y15: 0.08 | Z15: 2576000 | AA15: 0.08 | AB15: 2576000 | AC15: 848000 | AD15: 42400 | AE15: 84800 | AF15: 53000 | AG15: 307400 | AH15: 254400 | AI15: 95400 | AJ15: 93280 | AK15: 71020 | AL15: 31800 | AM15: 5300 | AN15: 190800 | AO15: 63600 | AP15: 151580 | AQ15: 106000 | AR15: 424000 | AS15: 53000 | AT15: 1 | AV15: C10
A16: MotocicletaDeportivayCalle124cc134ccIntervalodeprecio1Suzuki GN 125 NOVA MT 125CC1Suzuki Motor De Colombia S.A. | B16: MotocicletaDeportivayCalle124cc134ccIntervalodeprecio1 | C16: Suzuki GN 125 NOVA MT 125CC1 | D16: Suzuki Motor De Colombia S.A. | E16: Motocicleta Deportiva y Calle | F16: 124cc - 134cc | H16: Intervalo de precio 1 | I16: Gasolina | K16: Suzuki | L16: 8817145 | M16: GN | N16: 125 NOVA | O16: MT 125CC | P16: 4700000 | Q16: 0.12 | R16: 4136000 | S16: 0.125 | T16: 4112500 | U16: 0.126 | V16: 4107800 | W16: 0.127 | X16: 4103100 | Y16: 0.129 | Z16: 4093700 | AA16: 0.13 | AB16: 4089000 | AC16: 1845015.7 | AD16: 0 | AE16: 1 | AF16: 462000 | AG16: 0 | AH16: 0 | AI16: 0 | AJ16: 218238.9 | AK16: 218238.9 | AL16: 388958.9 | AM16: 111760 | AN16: 180400 | AO16: 95634 | AP16: 334400 | AQ16: 140800 | AR16: 0 | AS16: 0 | AT16: 1 | AV16: C10
A17: MotocicletaDeportivayCalle124cc134ccIntervalodeprecio1AKT EVO R3 125 MT 125CC0Colombiana De Comercio S.A. Siglas Corbeta S.A. y/o Alkosto S.A. | B17: MotocicletaDeportivayCalle124cc134ccIntervalodeprecio1 | C17: AKT EVO R3 125 MT 125CC0 | D17: Colombiana De Comercio S.A. Siglas Corbeta S.A. y/o Alkosto S.A. | E17: Motocicleta Deportiva y Calle | F17: 124cc - 134cc | H17: Intervalo de precio 1 | I17: Gasolina | K17: AKT | L17: 15917035 | M17: EVO | N17: R3 125 | O17: MT 125CC | P17: 3600000 | Q17: 0.08 | R17: 3312000 | S17: 0.08 | T17: 3312000 | U17: 0.08 | V17: 3312000 | W17: 0.08 | X17: 3312000 | Y17: 0.08 | Z17: 3312000 | AA17: 0.08 | AB17: 3312000 | AC17: 848000 | AD17: 42400 | AE17: 95400 | AF17: 53000 | AG17: 307400 | AH17: 254400 | AI17: 95400 | AJ17: 93280 | AK17: 71020 | AL17: 31800 | AM17: 5300 | AN17: 190800 | AO17: 63600 | AP17: 151580 | AQ17: 106000 | AR17: 424000 | AS17: 53000 | AT17: 0 | AV17: C10
A18: MotocicletaDeportivayCalle124cc134ccIntervalodeprecio2Suzuki GS 125 MT 125CC0Suzuki Motor De Colombia S.A. | B18: MotocicletaDeportivayCalle124cc134ccIntervalodeprecio2 | C18: Suzuki GS 125 MT 125CC0 | D18: Suzuki Motor De Colombia S.A. | E18: Motocicleta Deportiva y Calle | F18: 124cc - 134cc | H18: Intervalo de precio 2 | I18: Gasolina | K18: Suzuki | L18: 8817120 | M18: GS | N18: 125 | O18: MT 125CC | P18: 5500000 | Q18: 0.12 | R18: 4840000 | S18: 0.125 | T18: 4812500 | U18: 0.126 | V18: 4807000 | W18: 0.127 | X18: 4801500 | Y18: 0.129 | Z18: 4790500 | AA18: 0.13 | AB18: 4785000 | AT18: 0 | AV18: C11
A19: MotocicletaDeportivayCalle124cc134ccIntervalodeprecio2Auteco BAJAJ DISCOVER [3] 125 ST MT 125CC1Autotecnica Colombiana S.A.S | B19: MotocicletaDeportivayCalle124cc134ccIntervalodeprecio2 | C19: Auteco BAJAJ DISCOVER [3] 125 ST MT 125CC1 | D19: Autotecnica Colombiana S.A.S | E19: Motocicleta Deportiva y Calle | F19: 124cc - 134cc | H19: Intervalo de precio 2 | I19: Gasolina | K19: Auteco | L19: 317056 | M19: BAJAJ | N19: DISCOVER [3] 125 ST | O19: MT 125CC | P19: 5000000 | Q19: 0.1 | R19: 4500000 | S19: 0.1 | T19: 4500000 | U19: 0.1 | V19: 4500000 | W19: 0.1 | X19: 4500000 | Y19: 0.1 | Z19: 4500000 | AA19: 0.1 | AB19: 4500000 | AC19: 1515800 | AD19: 137800 | AE19: 1229600 | AF19: 65720 | AG19: 413400 | AH19: 328600 | AI19: 226840 | AJ19: 259700 | AK19: 174900 | AL19: 355100 | AM19: 111300 | AN19: 143100 | AO19: 148400 | AP19: 492900 | AQ19: 75789.56345 | AR19: 302100 | AS19: 116600 | AT19: 1 | AV19: C11
A20: MotocicletaDeportivayCalle124cc134ccIntervalodeprecio2Auteco BAJAJ PULSAR 135 LS MT 135CC1Autotecnica Colombiana S.A.S | B20: MotocicletaDeportivayCalle124cc134ccIntervalodeprecio2 | C20: Auteco BAJAJ PULSAR 135 LS MT 135CC1 | D20: Autotecnica Colombiana S.A.S | E20: Motocicleta Deportiva y Calle | F20: 124cc - 134cc | H20: Intervalo de precio 2 | I20: Gasolina | K20: Auteco | L20: 317069 | M20: BAJAJ | N20: PULSAR 135 LS | O20: MT 135CC | P20: 4500000 | Q20: 0.1 | R20: 4050000 | S20: 0.1 | T20: 4050000 | U20: 0.1 | V20: 4050000 | W20: 0.1 | X20: 4050000 | Y20: 0.1 | Z20: 4050000 | AA20: 0.1 | AB20: 4050000 | AC20: 1515800 | AD20: 137800 | AE20: 1314400 | AF20: 65720 | AG20: 413400 | AH20: 328600 | AI20: 226840 | AJ20: 259700 | AK20: 174900 | AL20: 355100 | AM20: 111300 | AN20: 143100 | AO20: 148400 | AP20: 492900 | AQ20: 75789.56345 | AR20: 302100 | AS20: 116600 | AT20: 1 | AV20: C11
A21: MotocicletaDeportivayCalle124cc134ccIntervalodeprecio2Yamaha LIBERO 125 RV MT 125CC1Incolmotos Yamaha S.A. | B21: MotocicletaDeportivayCalle124cc134ccIntervalodeprecio2 | C21: Yamaha LIBERO 125 RV MT 125CC1 | D21: Incolmotos Yamaha S.A. | E21: Motocicleta Deportiva y Calle | F21: 124cc - 134cc | H21: Intervalo de precio 2 | I21: Gasolina | K21: Yamaha | L21: 9817178 | M21: LIBERO | N21: 125 RV | O21: MT 125CC | P21: 4600000 | Q21: 0.03 | R21: 4462000 | S21: 0.033 | T21: 4448200 | U21: 0.033 | V21: 4448200 | W21: 0.035 | X21: 4439000 | Y21: 0.037 | Z21: 4429800 | AA21: 0.04 | AB21: 4416000 | AC21: 762000 | AD21: 40280 | AE21: 87980 | AF21: 6890 | AG21: 455800 | AH21: 1051308 | AI21: 79500 | AJ21: 159000 | AK21: 148400 | AL21: 190800 | AM21: 84800 | AN21: 307400 | AO21: 95400 | AP21: 222600 | AQ21: 116600 | AR21: 0 | AS21: 3180 | AT21: 1 | AV21: C11
A22: MotocicletaDeportivayCalle135cc165ccIntervalodeprecio2TVS APACHE [2] RTR160 MT 160CC1Colombiana De Comercio S.A. Siglas Corbeta S.A. y/o Alkosto S.A. | B22: MotocicletaDeportivayCalle135cc165ccIntervalodeprecio2 | C22: TVS APACHE [2] RTR160 MT 160CC1 | D22: Colombiana De Comercio S.A. Siglas Corbeta S.A. y/o Alkosto S.A. | E22: Motocicleta Deportiva y Calle | F22: 135cc - 165cc | H22: Intervalo de precio 2 | I22: Gasolina | K22: TVS | L22: 29517006 | M22: APACHE [2] | N22: RTR160 | O22: MT 160CC | P22: 4700000 | Q22: 0.08 | R22: 4324000 | S22: 0.08 | T22: 4324000 | U22: 0.08 | V22: 4324000 | W22: 0.08 | X22: 4324000 | Y22: 0.08 | Z22: 4324000 | AA22: 0.08 | AB22: 4324000 | AC22: 848000 | AD22: 42400 | AE22: 169600 | AF22: 53000 | AG22: 307400 | AH22: 254400 | AI22: 95400 | AJ22: 93280 | AK22: 71020 | AL22: 31800 | AM22: 5300 | AN22: 190800 | AO22: 63600 | AP22: 151580 | AQ22: 106000 | AR22: 424000 | AS22: 53000 | AT22: 1 | AV22: C12
A23: MotocicletaDeportivayCalle135cc165ccIntervalodeprecio2Auteco BAJAJ DISCOVER [3] 150 ST MT 150CC1Autotecnica Colombiana S.A.S | B23: MotocicletaDeportivayCalle135cc165ccIntervalodeprecio2 | C23: Auteco BAJAJ DISCOVER [3] 150 ST MT 150CC1 | D23: Autotecnica Colombiana S.A.S | E23: Motocicleta Deportiva y Calle | F23: 135cc - 165cc | H23: Intervalo de precio 2 | I23: Gasolina | K23: Auteco | L23: 317061 | M23: BAJAJ | N23: DISCOVER [3] 150 ST | O23: MT 150CC | P23: 4700000 | Q23: 0.1 | R23: 4230000 | S23: 0.1 | T23: 4230000 | U23: 0.1 | V23: 4230000 | W23: 0.1 | X23: 4230000 | Y23: 0.1 | Z23: 4230000 | AA23: 0.1 | AB23: 4230000 | AC23: 1515800 | AD23: 137800 | AE23: 1314400 | AF23: 65720 | AG23: 413400 | AH23: 328600 | AI23: 226840 | AJ23: 259700 | AK23: 174900 | AL23: 355100 | AM23: 111300 | AN23: 143100 | AO23: 148400 | AP23: 492900 | AQ23: 75789.56345 | AR23: 302100 | AS23: 116600 | AT23: 1 | AV23: C12
A24: MotocicletaDeportivayCalle135cc165ccIntervalodeprecio2Auteco BAJAJ PULSAR AS 150 MT 150CC1Autotecnica Colombiana S.A.S | B24: MotocicletaDeportivayCalle135cc165ccIntervalodeprecio2 | C24: Auteco BAJAJ PULSAR AS 150 MT 150CC1 | D24: Autotecnica Colombiana S.A.S | E24: Motocicleta Deportiva y Calle | F24: 135cc - 165cc | H24: Intervalo de precio 2 | I24: Gasolina | K24: Auteco | L24: 317068 | M24: BAJAJ | N24: PULSAR AS 150 | O24: MT 150CC | P24: 6200000 | Q24: 0.1 | R24: 5580000 | S24: 0.1 | T24: 5580000 | U24: 0.1 | V24: 5580000 | W24: 0.1 | X24: 5580000 | Y24: 0.1 | Z24: 5580000 | AA24: 0.1 | AB24: 5580000 | AC24: 1515800 | AD24: 137800 | AE24: 1314400 | AF24: 65720 | AG24: 413400 | AH24: 328600 | AI24: 226840 | AJ24: 259700 | AK24: 174900 | AL24: 355100 | AM24: 111300 | AN24: 143100 | AO24: 148400 | AP24: 492900 | AQ24: 75789.56345 | AR24: 302100 | AS24: 116600 | AT24: 1 | AV24: C12
A25: MotocicletaDeportivayCalle135cc165ccIntervalodeprecio2Auteco BAJAJ PULSAR 150 NS MT 150CC1Autotecnica Colombiana S.A.S | B25: MotocicletaDeportivayCalle135cc165ccIntervalodeprecio2 | C25: Auteco BAJAJ PULSAR 150 NS MT 150CC1 | D25: Autotecnica Colombiana S.A.S | E25: Motocicleta Deportiva y Calle | F25: 135cc - 165cc | H25: Intervalo de precio 2 | I25: Gasolina | K25: Auteco | L25: 317065 | M25: BAJAJ | N25: PULSAR 150 NS | O25: MT 150CC | P25: 7000000 | Q25: 0.1 | R25: 6300000 | S25: 0.1 | T25: 6300000 | U25: 0.1 | V25: 6300000 | W25: 0.1 | X25: 6300000 | Y25: 0.1 | Z25: 6300000 | AA25: 0.1 | AB25: 6300000 | AC25: 1627100 | AD25: 137800 | AE25: 1314400 | AF25: 65720 | AG25: 413400 | AH25: 328600 | AI25: 226840 | AJ25: 259700 | AK25: 174900 | AL25: 355100 | AM25: 111300 | AN25: 143100 | AO25: 148400 | AP25: 492900 | AQ25: 75789.56345 | AR25: 302100 | AS25: 116600 | AT25: 1 | AV25: C12
A26: MotocicletaDeportivayCalle135cc165ccIntervalodeprecio1AKT RTX 150 UNISHOCK MT 150CC0Colombiana De Comercio S.A. Siglas Corbeta S.A. y/o Alkosto S.A. | B26: MotocicletaDeportivayCalle135cc165ccIntervalodeprecio1 | C26: AKT RTX 150 UNISHOCK MT 150CC0 | D26: Colombiana De Comercio S.A. Siglas Corbeta S.A. y/o Alkosto S.A. | E26: Motocicleta Deportiva y Calle | F26: 135cc - 165cc | H26: Intervalo de precio 1 | I26: Gasolina | K26: AKT | L26: 15917039 | M26: RTX | N26: 150 UNISHOCK | O26: MT 150CC | P26: 4400000 | Q26: 0.08 | R26: 4048000 | S26: 0.08 | T26: 4048000 | U26: 0.08 | V26: 4048000 | W26: 0.08 | X26: 4048000 | Y26: 0.08 | Z26: 4048000 | AA26: 0.08 | AB26: 4048000 | AC26: 848000 | AD26: 42400 | AE26: 106000 | AF26: 53000 | AG26: 307400 | AH26: 254400 | AI26: 95400 | AJ26: 93280 | AK26: 71020 | AL26: 31800 | AM26: 5300 | AN26: 190800 | AO26: 63600 | AP26: 151580 | AQ26: 106000 | AR26: 424000 | AS26: 53000 | AT26: 0 | AV26: C13
A27: MotocicletaDeportivayCalle135cc165ccIntervalodeprecio3Suzuki GIXXER 150 MT 150CC1Suzuki Motor De Colombia S.A. | B27: MotocicletaDeportivayCalle135cc165ccIntervalodeprecio3 | C27: Suzuki GIXXER 150 MT 150CC1 | D27: Suzuki Motor De Colombia S.A. | E27: Motocicleta Deportiva y Calle | F27: 135cc - 165cc | H27: Intervalo de precio 3 | I27: Gasolina | K27: Suzuki | L27: 8817149 | M27: GIXXER | N27: 150 | O27: MT 150CC | P27: 7600000 | Q27: 0.12 | R27: 6688000 | S27: 0.125 | T27: 6650000 | U27: 0.126 | V27: 6642400 | W27: 0.127 | X27: 6634800 | Y27: 0.129 | Z27: 6619600 | AA27: 0.13 | AB27: 6612000 | AC27: 2396299.07 | AD27: 76501.26 | AE27: 1 | AF27: 489720 | AG27: 374023.65 | AH27: 766762.766 | AI27: NA | AJ27: 231333.234 | AK27: 231333.234 | AL27: 412296.434 | AM27: 118465.6 | AN27: 191224 | AO27: 85817.6 | AP27: 354464 | AQ27: 149248 | AR27: NA | AS27: 78355.2 | AT27: 1 | AV27: C14
A28: MotocicletaDeportivayCalle135cc165ccIntervalodeprecio3Yamaha FZ-S FI 2.0 MT 150CC1Incolmotos Yamaha S.A. | B28: MotocicletaDeportivayCalle135cc165ccIntervalodeprecio3 | C28: Yamaha FZ-S FI 2.0 MT 150CC1 | D28: Incolmotos Yamaha S.A. | E28: Motocicleta Deportiva y Calle | F28: 135cc - 165cc | H28: Intervalo de precio 3 | I28: Gasolina | K28: Yamaha | L28: 9817189 | M28: FZ-S | N28: FI 2.0 | O28: MT 150CC | P28: 6500000 | Q28: 0.05 | R28: 6175000 | S28: 0.053 | T28: 6155500 | U28: 0.054 | V28: 6149000 | W28: 0.055 | X28: 6142500 | Y28: 0.06 | Z28: 6110000 | AA28: 0.07 | AB28: 6045000 | AC28: 980410 | AD28: 42400 | AE28: 95400 | AF28: 7950 | AG28: 455800 | AH28: 1051308 | AI28: 79500 | AJ28: 159000 | AK28: 148400 | AL28: 190800 | AM28: 95400 | AN28: 307400 | AO28: 81620 | AP28: 222600 | AQ28: 116600 | AR28: 0 | AS28: 33920 | AT28: 1 | AV28: C14
A29: MotocicletaDeportivayCalle166cc190ccIntervalodeprecio1TVS APACHE [2] RTR180 MT 180CC1Colombiana De Comercio S.A. Siglas Corbeta S.A. y/o Alkosto S.A. | B29: MotocicletaDeportivayCalle166cc190ccIntervalodeprecio1 | C29: TVS APACHE [2] RTR180 MT 180CC1 | D29: Colombiana De Comercio S.A. Siglas Corbeta S.A. y/o Alkosto S.A. | E29: Motocicleta Deportiva y Calle | F29: 166cc - 190cc | H29: Intervalo de precio 1 | I29: Gasolina | K29: TVS | L29: 29517007 | M29: APACHE [2] | N29: RTR180 | O29: MT 180CC | P29: 5500000 | Q29: 0.08 | R29: 5060000 | S29: 0.08 | T29: 5060000 | U29: 0.08 | V29: 5060000 | W29: 0.08 | X29: 5060000 | Y29: 0.08 | Z29: 5060000 | AA29: 0.08 | AB29: 5060000 | AC29: 848000 | AD29: 42400 | AE29: 169600 | AF29: 53000 | AG29: 307400 | AH29: 254400 | AI29: 95400 | AJ29: 93280 | AK29: 71020 | AL29: 31800 | AM29: 5300 | AN29: 190800 | AO29: 63600 | AP29: 151580 | AQ29: 106000 | AR29: 424000 | AS29: 53000 | AT29: 1 | AV29: C15
A30: MotocicletaDeportivayCalle166cc190ccIntervalodeprecio1AKT AK CR5 MT 180CC0Colombiana De Comercio S.A. Siglas Corbeta S.A. y/o Alkosto S.A. | B30: MotocicletaDeportivayCalle166cc190ccIntervalodeprecio1 | C30: AKT AK CR5 MT 180CC0 | D30: Colombiana De Comercio S.A. Siglas Corbeta S.A. y/o Alkosto S.A. | E30: Motocicleta Deportiva y Calle | F30: 166cc - 190cc | H30: Intervalo de precio 1 | I30: Gasolina | K30: AKT | L30: 15917040 | M30: AK | N30: CR5 | O30: MT 180CC | P30: 4900000 | Q30: 0.08 | R30: 4508000 | S30: 0.08 | T30: 4508000 | U30: 0.08 | V30: 4508000 | W30: 0.08 | X30: 4508000 | Y30: 0.08 | Z30: 4508000 | AA30: 0.08 | AB30: 4508000 | AC30: 848000 | AD30: 42400 | AE30: 95400 | AF30: 53000 | AG30: 307400 | AH30: 254400 | AI30: 95400 | AJ30: 93280 | AK30: 71020 | AL30: 31800 | AM30: 5300 | AN30: 190800 | AO30: 63600 | AP30: 151580 | AQ30: 106000 | AR30: 424000 | AS30: 53000 | AT30: 0 | AV30: C15
A31: MotocicletaDeportivayCalle166cc190ccIntervalodeprecio1Auteco BAJAJ PULSAR UG MT 180CC1Autotecnica Colombiana S.A.S | B31: MotocicletaDeportivayCalle166cc190ccIntervalodeprecio1 | C31: Auteco BAJAJ PULSAR UG MT 180CC1 | D31: Autotecnica Colombiana S.A.S | E31: Motocicleta Deportiva y Calle | F31: 166cc - 190cc | H31: Intervalo de precio 1 | I31: Gasolina | K31: Auteco | L31: 317045 | M31: BAJAJ | N31: PULSAR UG | O31: MT 180CC | P31: 5700000 | Q31: 0.1 | R31: 5130000 | S31: 0.1 | T31: 5130000 | U31: 0.1 | V31: 5130000 | W31: 0.1 | X31: 5130000 | Y31: 0.1 | Z31: 5130000 | AA31: 0.1 | AB31: 5130000 | AC31: 1535000 | AD31: 137800 | AE31: 1335000 | AF31: 65720 | AG31: 413400 | AH31: 328600 | AI31: 226840 | AJ31: 259700 | AK31: 174900 | AL31: 355100 | AM31: 111300 | AN31: 143100 | AO31: 148400 | AP31: 492900 | AQ31: 75789.56345 | AR31: 302100 | AS31: 116600 | AT31: 1 | AV31: C15
A32: MotocicletaDeportivayCalle191cc220ccIntervalodeprecio2Auteco BAJAJ PULSAR AS 200 MT 200CC0Autotecnica Colombiana S.A.S | B32: MotocicletaDeportivayCalle191cc220ccIntervalodeprecio2 | C32: Auteco BAJAJ PULSAR AS 200 MT 200CC0 | D32: Autotecnica Colombiana S.A.S | E32: Motocicleta Deportiva y Calle | F32: 191 cc - 220cc | H32: Intervalo de precio 2 | I32: Gasolina | K32: Auteco | L32: 317066 | M32: BAJAJ | N32: PULSAR AS 200 | O32: MT 200CC | P32: 9500000 | Q32: 0.1 | R32: 8550000 | S32: 0.1 | T32: 8550000 | U32: 0.1 | V32: 8550000 | W32: 0.1 | X32: 8550000 | Y32: 0.1 | Z32: 8550000 | AA32: 0.1 | AB32: 8550000 | AC32: 1630000 | AD32: 130000 | AE32: 1260000 | AF32: 62000 | AG32: 390000 | AH32: 310000 | AI32: 214000 | AJ32: 245000 | AK32: 165000 | AL32: 335000 | AM32: 105000 | AN32: 135000 | AO32: 140000 | AP32: 465000 | AQ32: 71499.58816 | AR32: 285000 | AS32: 110000 | AT32: 0 | AV32: C16
A33: MotocicletaDeportivayCalle191cc220ccIntervalodeprecio2Auteco BAJAJ PULSAR 200 NS MT 200CC1Autotecnica Colombiana S.A.S | B33: MotocicletaDeportivayCalle191cc220ccIntervalodeprecio2 | C33: Auteco BAJAJ PULSAR 200 NS MT 200CC1 | D33: Autotecnica Colombiana S.A.S | E33: Motocicleta Deportiva y Calle | F33: 191 cc - 220cc | H33: Intervalo de precio 2 | I33: Gasolina | K33: Auteco | L33: 317057 | M33: BAJAJ | N33: PULSAR 200 NS | O33: MT 200CC | P33: 8600000 | Q33: 0.1 | R33: 7740000 | S33: 0.1 | T33: 7740000 | U33: 0.1 | V33: 7740000 | W33: 0.1 | X33: 7740000 | Y33: 0.1 | Z33: 7740000 | AA33: 0.1 | AB33: 7740000 | AC33: 1727800 | AD33: 137800 | AE33: 1335600 | AF33: 65720 | AG33: 413400 | AH33: 328600 | AI33: 226840 | AJ33: 259700 | AK33: 174900 | AL33: 355100 | AM33: 111300 | AN33: 143100 | AO33: 148400 | AP33: 492900 | AQ33: 75789.56345 | AR33: 302100 | AS33: 116600 | AT33: 1 | AV33: C16
A34: MotocicletaDeportivayCalle191cc220ccIntervalodeprecio1Auteco BAJAJ AVENGER 220 MT 220CC0Autotecnica Colombiana S.A.S | B34: MotocicletaDeportivayCalle191cc220ccIntervalodeprecio1 | C34: =K34&" "&M34&" "&N34&" "&O34&AT34 -> Auteco BAJAJ AVENGER 220 MT 220CC0 | D34: Autotecnica Colombiana S.A.S | E34: Motocicleta Deportiva y Calle | F34: 191 cc - 220cc | H34: Intervalo de precio 1 | I34: Gasolina | K34: Auteco | L34: 317058 | M34: BAJAJ | N34: AVENGER 220 | O34: MT 220CC | P34: 4700000 | Q34: 0.1 | R34: 4230000 | S34: 0.1 | T34: 4230000 | U34: 0.1 | V34: 4230000 | W34: 0.1 | X34: 4230000 | Y34: 0.1 | Z34: 4230000 | AA34: 0.1 | AB34: 4230000 | AC34: 1395000 | AD34: 118916.0544 | AE34: 1149172.931 | AF34: 56299.0688 | AG34: 356642 | AH34: 284559.6 | AI34: 195000 | AJ34: 223184 | AK34: 153212.8 | AL34: 307230.2688 | AM34: 96512 | AN34: 124358.1248 | AO34: 129438.2752 | AP34: 422240 | AQ34: 64999.6256 | AR34: 259376 | AS34: 101036 | AT34: 0 | AV34: C17
A35: MotocicletaDeportivayCalle221cc274ccIntervalodeprecio1Kawasaki Z Z250 SL MT 250CC1Autotecnica Colombiana S.A.S | B35: MotocicletaDeportivayCalle221cc274ccIntervalodeprecio1 | C35: Kawasaki Z Z250 SL MT 250CC1 | D35: Autotecnica Colombiana S.A.S | E35: Motocicleta Deportiva y Calle | F35: 221cc - 274cc | H35: Intervalo de precio 1 | I35: Gasolina | K35: Kawasaki | L35: 4517131 | M35: Z | N35: Z250 SL | O35: MT 250CC | P35: 15000000 | Q35: 0.06 | R35: 14100000 | S35: 0.06 | T35: 14100000 | U35: 0.06 | V35: 14100000 | W35: 0.06 | X35: 14100000 | Y35: 0.06 | Z35: 14100000 | AA35: 0.06 | AB35: 14100000 | AC35: 4324800 | AD35: 137800 | AE35: 1335600 | AF35: 62000 | AG35: 413400 | AH35: 328600 | AI35: 226840 | AJ35: 259700 | AK35: 174900 | AL35: 355100 | AM35: 111300 | AN35: 143100 | AO35: 148400 | AP35: 492900 | AQ35: 75789.56345 | AR35: 302100 | AS35: 116600 | AT35: 1 | AV35: C18
A36: MotocicletaDeportivayCalle221cc274ccIntervalodeprecio2Suzuki DL 250 [V STROM] [2] MT 250CC1Suzuki Motor De Colombia S.A. | B36: MotocicletaDeportivayCalle221cc274ccIntervalodeprecio2 | C36: Suzuki DL 250 [V STROM] [2] MT 250CC1 | D36: Suzuki Motor De Colombia S.A. | E36: Motocicleta Deportiva y Calle | F36: 221cc - 274cc | H36: Intervalo de precio 2 | I36: Gasolina | K36: Suzuki | L36: 8817161 | M36: DL | N36: 250 [V STROM] [2] | O36: MT 250CC | P36: 19500000 | Q36: 0.001 | R36: 19480500 | S36: 0.001 | T36: 19480500 | U36: 0.001 | V36: 19480500 | W36: 0.001 | X36: 19480500 | Y36: 0.001 | Z36: 19480500 | AA36: 0.03 | AB36: 18915000 | AC36: 4583867 | AD36: 298259 | AE36: 587000 | AF36: 420000 | AG36: 320775 | AH36: 657601 | AI36: 0 | AJ36: 198399 | AK36: 198399 | AL36: 353599 | AM36: 101600 | AN36: 164000 | AO36: 86940 | AP36: 304000 | AQ36: 128000 | AR36: 282283 | AS36: 140155 | AT36: 1 | AV36: C19
A37: MotocicletaDeportivayCalle325cc525ccIntervalodeprecio1Suzuki GS 500 MT 500CC0Suzuki Motor De Colombia S.A. | B37: MotocicletaDeportivayCalle325cc525ccIntervalodeprecio1 | C37: Suzuki GS 500 MT 500CC0 | D37: Suzuki Motor De Colombia S.A. | E37: Motocicleta Deportiva y Calle | F37: 325cc - 525cc | H37: Intervalo de precio 1 | I37: Gasolina | K37: Suzuki | L37: 8817056 | M37: GS | N37: 500 | O37: MT 500CC | P37: 18200000 | Q37: 0.06 | R37: 17108000 | S37: 0.065 | T37: 17017000 | U37: 0.066 | V37: 16998800 | W37: 0.067 | X37: 16980600 | Y37: 0.069 | Z37: 16944200 | AA37: 0.07 | AB37: 16926000 | AC37: 8988105.17 | AD37: 121730.4 | AE37: 1 | AF37: 489720 | AG37: 374023.65 | AH37: 766762.766 | AI37: NA | AJ37: 231333.234 | AK37: 231333.234 | AL37: 412296.434 | AM37: 118465.6 | AN37: 191224 | AO37: 293832 | AP37: 354464 | AQ37: 149248 | AR37: NA | AS37: 139150.44 | AT37: 0 | AV37: C20
A38: MotocicletaDeportivayCalle325cc525ccIntervalodeprecio1Honda CB 500 F MT 500CC ABS1Fanalca | B38: MotocicletaDeportivayCalle325cc525ccIntervalodeprecio1 | C38: Honda CB 500 F MT 500CC ABS1 | D38: Fanalca | E38: Motocicleta Deportiva y Calle | F38: 325cc - 525cc | H38: Intervalo de precio 1 | I38: Gasolina | K38: Honda | L38: 3417174 | M38: CB | N38: 500 F | O38: MT 500CC ABS | P38: 28000000 | Q38: 0 | R38: 28000000 | S38: 0.02 | T38: 27440000 | U38: 0.03 | V38: 27160000 | W38: 0.04 | X38: 26880000 | Y38: 0.05 | Z38: 26600000 | AA38: 0.05 | AB38: 26600000 | AC38: 6266859 | AD38: 123600 | AE38: 100000 | AF38: 15000 | AG38: 442900 | AH38: 1030000 | AI38: 360000 | AJ38: 154500 | AK38: 154500 | AL38: 166600 | AM38: 83300 | AN38: 293550 | AO38: 116600 | AP38: 195700 | AQ38: 92700 | AR38: 210000 | AS38: 72100 | AT38: 1 | AV38: C20
A39: MotocicletaDoblePropositoTipoEnduro100cc125ccIntervalodeprecio2Yamaha XTZ [2] 125 MT 125CC1Incolmotos Yamaha S.A. | B39: MotocicletaDoblePropositoTipoEnduro100cc125ccIntervalodeprecio2 | C39: Yamaha XTZ [2] 125 MT 125CC1 | D39: Incolmotos Yamaha S.A. | E39: Motocicleta Doble Proposito Tipo Enduro | F39: 100cc - 125cc | H39: Intervalo de precio 2 | I39: Gasolina | K39: Yamaha | L39: 9817188 | M39: XTZ [2] | N39: 125 | O39: MT 125CC | P39: 6600000 | Q39: 0 | R39: 6600000 | S39: 0 | T39: 6600000 | U39: 0 | V39: 6600000 | W39: 0.01 | X39: 6534000 | Y39: 0.015 | Z39: 6501000 | AA39: 0.02 | AB39: 6468000 | AC39: 2702000 | AD39: 132500 | AE39: 159000 | AF39: 9540 | AG39: 527880 | AH39: 1168120 | AI39: 95400 | AJ39: 180200 | AK39: 169600 | AL39: 222600 | AM39: 95400 | AN39: 360400 | AO39: 106000 | AP39: 254400 | AQ39: 148400 | AR39: 0 | AS39: 10600 | AT39: 1 | AV39: C21
A40: MotocicletaDoblePropositoTipoEnduro126cc165ccIntervalodeprecio2Kawasaki KLX 150 MT 150CC1Autotecnica Colombiana S.A.S | B40: MotocicletaDoblePropositoTipoEnduro126cc165ccIntervalodeprecio2 | C40: Kawasaki KLX 150 MT 150CC1 | D40: Autotecnica Colombiana S.A.S | E40: Motocicleta Doble Proposito Tipo Enduro | F40: 126cc - 165cc | H40: Intervalo de precio 2 | I40: Gasolina | K40: Kawasaki | L40: 4517112 | M40: KLX | N40: 150 | O40: MT 150CC | P40: 8200000 | Q40: 0.06 | R40: 7708000 | S40: 0.06 | T40: 7708000 | U40: 0.06 | V40: 7708000 | W40: 0.06 | X40: 7708000 | Y40: 0.06 | Z40: 7708000 | AA40: 0.06 | AB40: 7708000 | AC40: 1749000 | AD40: 137800 | AE40: 1229600 | AF40: 65720 | AG40: 413400 | AH40: 328600 | AI40: 226840 | AJ40: 259700 | AK40: 174900 | AL40: 355100 | AM40: 111300 | AN40: 143100 | AO40: 148400 | AP40: 492900 | AQ40: 75789.56345 | AR40: 302100 | AS40: 116600 | AT40: 1 | AV40: C22
A41: MotocicletaDoblePropositoTipoEnduro166cc190ccIntervalodeprecio1AKT TTR 180 MT 180CC0Colombiana De Comercio S.A. Siglas Corbeta S.A. y/o Alkosto S.A. | B41: MotocicletaDoblePropositoTipoEnduro166cc190ccIntervalodeprecio1 | C41: AKT TTR 180 MT 180CC0 | D41: Colombiana De Comercio S.A. Siglas Corbeta S.A. y/o Alkosto S.A. | E41: Motocicleta Doble Proposito Tipo Enduro | F41: 166cc - 190cc | H41: Intervalo de precio 1 | I41: Gasolina | K41: AKT | L41: 15917042 | M41: TTR | N41: 180 | O41: MT 180CC | P41: 4500000 | Q41: 0.08 | R41: 4140000 | S41: 0.08 | T41: 4140000 | U41: 0.08 | V41: 4140000 | W41: 0.08 | X41: 4140000 | Y41: 0.08 | Z41: 4140000 | AA41: 0.08 | AB41: 4140000 | AC41: 848000 | AD41: 42400 | AE41: 106000 | AF41: 53000 | AG41: 307400 | AH41: 254400 | AI41: 95400 | AJ41: 93280 | AK41: 71020 | AL41: 31800 | AM41: 5300 | AN41: 190800 | AO41: 63600 | AP41: 151580 | AQ41: 106000 | AR41: 424000 | AS41: 53000 | AT41: 0 | AV41: C23
A42: MotocicletaDoblePropositoTipoEnduro166cc190ccIntervalodeprecio1AKT TTX 180 MT 180CC0Colombiana De Comercio S.A. Siglas Corbeta S.A. y/o Alkosto S.A. | B42: MotocicletaDoblePropositoTipoEnduro166cc190ccIntervalodeprecio1 | C42: AKT TTX 180 MT 180CC0 | D42: Colombiana De Comercio S.A. Siglas Corbeta S.A. y/o Alkosto S.A. | E42: Motocicleta Doble Proposito Tipo Enduro | F42: 166cc - 190cc | H42: Intervalo de precio 1 | I42: Gasolina | K42: AKT | L42: 15917043 | M42: TTX | N42: 180 | O42: MT 180CC | P42: 5000000 | Q42: 0.08 | R42: 4600000 | S42: 0.08 | T42: 4600000 | U42: 0.08 | V42: 4600000 | W42: 0.08 | X42: 4600000 | Y42: 0.08 | Z42: 4600000 | AA42: 0.08 | AB42: 4600000 | AC42: 848000 | AD42: 42400 | AE42: 106000 | AF42: 53000 | AG42: 307400 | AH42: 254400 | AI42: 95400 | AJ42: 93280 | AK42: 71020 | AL42: 31800 | AM42: 5300 | AN42: 190800 | AO42: 63600 | AP42: 151580 | AQ42: 106000 | AR42: 424000 | AS42: 53000 | AT42: 0 | AV42: C23
A43: MotocicletaDoblePropositoTipoEnduro191cc225ccIntervalodeprecio2Suzuki DRX 200 MT 200CC1Suzuki Motor De Colombia S.A. | B43: MotocicletaDoblePropositoTipoEnduro191cc225ccIntervalodeprecio2 | C43: Suzuki DRX 200 MT 200CC1 | D43: Suzuki Motor De Colombia S.A. | E43: Motocicleta Doble Proposito Tipo Enduro | F43: 191cc - 225cc | H43: Intervalo de precio 2 | I43: Gasolina | K43: Suzuki | L43: 8817150 | M43: DRX | N43: 200 | O43: MT 200CC | P43: 12700000 | Q43: 0.08 | R43: 11684000 | S43: 0.085 | T43: 11620500 | U43: 0.086 | V43: 11607800 | W43: 0.087 | X43: 11595100 | Y43: 0.089 | Z43: 11569700 | AA43: 0.09 | AB43: 11557000 | AC43: 4038502.059 | AD43: 150520.106 | AE43: 1 | AF43: 489720 | AG43: 358108.916 | AH43: 766762.766 | AI43: NA | AJ43: 231333.234 | AK43: 231333.234 | AL43: 412296.434 | AM43: 118465.6 | AN43: 191224 | AO43: 101372.04 | AP43: 354464 | AQ43: 149248 | AR43: NA | AS43: 61704.72 | AT43: 1 | AV43: C24
A44: MotocicletaDoblePropositoTipoEnduro226cc274ccIntervalodeprecio2Kawasaki KLX 250 MT 250CC1Autotecnica Colombiana S.A.S | B44: MotocicletaDoblePropositoTipoEnduro226cc274ccIntervalodeprecio2 | C44: Kawasaki KLX 250 MT 250CC1 | D44: Autotecnica Colombiana S.A.S | E44: Motocicleta Doble Proposito Tipo Enduro | F44: 226cc - 274cc | H44: Intervalo de precio 2 | I44: Gasolina | J44: KLX 250 MT 250CC | K44: Kawasaki | L44: 4517108 | M44: KLX | N44: 250 | O44: MT 250CC | P44: 18300000 | Q44: 0.05 | R44: 17385000 | S44: 0.05 | T44: 17385000 | U44: 0.05 | V44: 17385000 | W44: 0.05 | X44: 17385000 | Y44: 0.05 | Z44: 17385000 | AA44: 0.05 | AB44: 17385000 | AC44: 3922000 | AD44: 137800 | AE44: 1335600 | AF44: 65720 | AG44: 413400 | AH44: 328600 | AI44: 226840 | AJ44: 259700 | AK44: 174900 | AL44: 355100 | AM44: 111300 | AN44: 143100 | AO44: 148400 | AP44: 492900 | AQ44: 75789.56345 | AR44: 302100 | AS44: 116600 | AT44: 1 | AV44: C25
A45: MotocicletaDoblePropositoTipoEnduro226cc274ccIntervalodeprecio2Yamaha XTZ [1] 250 MT 250CC1Incolmotos Yamaha S.A. | B45: MotocicletaDoblePropositoTipoEnduro226cc274ccIntervalodeprecio2 | C45: Yamaha XTZ [1] 250 MT 250CC1 | D45: Incolmotos Yamaha S.A. | E45: Motocicleta Doble Proposito Tipo Enduro | F45: 226cc - 274cc | H45: Intervalo de precio 2 | I45: Gasolina | K45: Yamaha | L45: 9817137 | M45: XTZ [1] | N45: 250 | O45: MT 250CC | P45: 15900000 | Q45: 0.03 | R45: 15423000 | S45: 0.03 | T45: 15423000 | U45: 0.035 | V45: 15343500 | W45: 0.04 | X45: 15264000 | Y45: 0.04 | Z45: 15264000 | AA45: 0.05 | AB45: 15105000 | AC45: 3469000 | AD45: 137800 | AE45: 201400 | AF45: 9540 | AG45: 527880 | AH45: 1168120 | AI45: 95400 | AJ45: 180200 | AK45: 169600 | AL45: 212000 | AM45: 95400 | AN45: 328600 | AO45: 106000 | AP45: 243800 | AQ45: 137800 | AR45: 954000 | AS45: 63600 | AT45: 1 | AV45: C25
A46: MotocicletaDoblePropositoTipoEnduro275cc324ccIntervalodeprecio1Honda XRE 300 MT 300CC1Fanalca | B46: MotocicletaDoblePropositoTipoEnduro275cc324ccIntervalodeprecio1 | C46: Honda XRE 300 MT 300CC1 | D46: Fanalca | E46: Motocicleta Doble Proposito Tipo Enduro | F46: 275cc - 324cc | H46: Intervalo de precio 1 | I46: Gasolina | K46: Honda | L46: 3417173 | M46: XRE | N46: 300 | O46: MT 300CC | P46: 15500000 | Q46: 0 | R46: 15500000 | S46: 0.02 | T46: 15190000 | U46: 0.03 | V46: 15035000 | W46: 0.035 | X46: 14957500 | Y46: 0.04 | Z46: 14880000 | AA46: 0.045 | AB46: 14802500 | AC46: 3700000 | AD46: 116600 | AE46: 80000 | AF46: 15000 | AG46: 442900 | AH46: 916300 | AI46: 360000 | AJ46: 154500 | AK46: 154500 | AL46: 166600 | AM46: 83300 | AN46: 293550 | AO46: 116600 | AP46: 195700 | AQ46: 92700 | AR46: 210000 | AS46: 0 | AT46: 1 | AV46: C26
A47: MotocicletaDoblePropositoTipoEnduro600cc670ccIntervalodeprecio1Yamaha XT 660 R MT 660CC1Incolmotos Yamaha S.A. | B47: MotocicletaDoblePropositoTipoEnduro600cc670ccIntervalodeprecio1 | C47: Yamaha XT 660 R MT 660CC1 | D47: Incolmotos Yamaha S.A. | E47: Motocicleta Doble Proposito Tipo Enduro | F47: 600cc - 670cc | H47: Intervalo de precio 1 | I47: Gasolina | K47: Yamaha | L47: 9817128 | M47: XT | N47: 660 R | O47: MT 660CC | P47: 26900000 | Q47: 0.05 | R47: 25555000 | S47: 0.055 | T47: 25420500 | U47: 0.057 | V47: 25366700 | W47: 0.06 | X47: 25286000 | Y47: 0.065 | Z47: 25151500 | AA47: 0.07 | AB47: 25017000 | AC47: 1839000 | AD47: 53000 | AE47: 170660 | AF47: 7950 | AG47: 455800 | AH47: 1051308 | AI47: 79500 | AJ47: 159000 | AK47: 148400 | AL47: 190800 | AM47: 84800 | AN47: 307400 | AO47: 95400 | AP47: 222600 | AQ47: 106000 | AR47: 954000 | AS47: 29680 | AT47: 1 | AV47: C27
A48: MotocicletaDoblePropositoTipoEnduro600cc670ccIntervalodeprecio1Suzuki DR 650 MT 650CC1Suzuki Motor De Colombia S.A. | B48: MotocicletaDoblePropositoTipoEnduro600cc670ccIntervalodeprecio1 | C48: Suzuki DR 650 MT 650CC1 | D48: Suzuki Motor De Colombia S.A. | E48: Motocicleta Doble Proposito Tipo Enduro | F48: 600cc - 670cc | H48: Intervalo de precio 1 | I48: Gasolina | K48: Suzuki | L48: 8817058 | M48: DR | N48: 650 | O48: MT 650CC | P48: 24600000 | Q48: 0.06 | R48: 23124000 | S48: 0.065 | T48: 23001000 | U48: 0.066 | V48: 22976400 | W48: 0.067 | X48: 22951800 | Y48: 0.069 | Z48: 22902600 | AA48: 0.07 | AB48: 22878000 | AC48: 6242840.956 | AD48: 249432.6068 | AE48: 1 | AF48: 489720 | AG48: 358108.916 | AH48: 766762.766 | AI48: NA | AJ48: 231333.234 | AK48: 231333.234 | AL48: 412296.434 | AM48: 118465.6 | AN48: 191224 | AO48: 101372.04 | AP48: 354464 | AQ48: 149248 | AR48: NA | AS48: 80436.51 | AT48: 1 | AV48: C27
A49: MotocicletaDoblePropositoTipoEnduro600cc670ccIntervalodeprecio1Kawasaki KLR KL650 MT 650CC1Autotecnica Colombiana S.A.S | B49: MotocicletaDoblePropositoTipoEnduro600cc670ccIntervalodeprecio1 | C49: Kawasaki KLR KL650 MT 650CC1 | D49: Autotecnica Colombiana S.A.S | E49: Motocicleta Doble Proposito Tipo Enduro | F49: 600cc - 670cc | H49: Intervalo de precio 1 | I49: Gasolina | K49: Kawasaki | L49: 4517102 | M49: KLR | N49: KL650 | O49: MT 650CC | P49: 32200000 | Q49: 0.05 | R49: 30590000 | S49: 0.05 | T49: 30590000 | U49: 0.05 | V49: 30590000 | W49: 0.05 | X49: 30590000 | Y49: 0.05 | Z49: 30590000 | AA49: 0.05 | AB49: 30590000 | AC49: 4229400 | AD49: 137800 | AE49: 1590000 | AF49: 65720 | AG49: 413400 | AH49: 328600 | AI49: 226840 | AJ49: 259700 | AK49: 174900 | AL49: 355100 | AM49: 111300 | AN49: 143100 | AO49: 148400 | AP49: 492900 | AQ49: 75789.56345 | AR49: 302100 | AS49: 116600 | AT49: 1 | AV49: C28
A50: MotocicletaDoblePropositoTipoTurismo600cc670ccIntervalodeprecio2Suzuki DL 650XT [V STROM] [2] MT 650CC ABS1Suzuki Motor De Colombia S.A. | B50: MotocicletaDoblePropositoTipoTurismo600cc670ccIntervalodeprecio2 | C50: Suzuki DL 650XT [V STROM] [2] MT 650CC ABS1 | D50: Suzuki Motor De Colombia S.A. | E50: Motocicleta Doble Proposito Tipo Turismo | F50: 600cc - 670cc | H50: Intervalo de precio 2 | I50: Gasolina | K50: Suzuki | L50: 8817162 | M50: DL | N50: 650XT [V STROM] [2] | O50: MT 650CC ABS | P50: 36400000 | Q50: 0.06 | R50: 34216000 | S50: 0.065 | T50: 34034000 | U50: 0.066 | V50: 33997600 | W50: 0.067 | X50: 33961200 | Y50: 0.069 | Z50: 33888400 | AA50: 0.07 | AB50: 33852000 | AC50: 9373999.827 | AD50: 127200.106 | AE50: 157410 | AF50: 489720 | AG50: 358107.75 | AH50: 766762.766 | AI50: 1302701.84 | AJ50: 231333.234 | AK50: 231333.234 | AL50: 412296.434 | AM50: 118465.6 | AN50: 191224 | AO50: 167483.074 | AP50: 354464 | AQ50: 149248 | AR50: 329141.978 | AS50: 50686.02 | AT50: 1 | AV50: C29
A51: MotocicletaDoblePropositoTipoTurismo750cc850ccIntervalodeprecio2Yamaha MT 09 TRACER MT 850CC ABS1Incolmotos Yamaha S.A. | B51: MotocicletaDoblePropositoTipoTurismo750cc850ccIntervalodeprecio2 | C51: Yamaha MT 09 TRACER MT 850CC ABS1 | D51: Incolmotos Yamaha S.A. | E51: Motocicleta Doble Proposito Tipo Turismo | F51: 750cc - 850cc | H51: Intervalo de precio 2 | I51: Gasolina | K51: Yamaha | L51: 9817187 | M51: MT | N51: 09 TRACER | O51: MT 850CC ABS | P51: 41000000 | Q51: 0 | R51: 41000000 | S51: 0 | T51: 41000000 | U51: 0 | V51: 41000000 | W51: 0 | X51: 41000000 | Y51: 0 | Z51: 41000000 | AA51: 0 | AB51: 41000000 | AC51: 5334000 | AD51: 233200 | AE51: 135680 | AF51: 12720 | AG51: 527880 | AH51: 1168120 | AI51: 95400 | AJ51: 180200 | AK51: 169600 | AL51: 212000 | AM51: 95400 | AN51: 349800 | AO51: 127200 | AP51: 254400 | AQ51: 148400 | AR51: 2650000 | AS51: 318000 | AT51: 1 | AV51: C30
A52: MotocicletaDoblePropositoTipoTurismo851cc1099ccIntervalodeprecio1Suzuki DL 1000A [V STROM] [2] MT 1000CC ABS0Suzuki Motor De Colombia S.A. | B52: MotocicletaDoblePropositoTipoTurismo851cc1099ccIntervalodeprecio1 | C52: Suzuki DL 1000A [V STROM] [2] MT 1000CC ABS0 | D52: Suzuki Motor De Colombia S.A. | E52: Motocicleta Doble Proposito Tipo Turismo | F52: 851cc - 1.099cc | H52: Intervalo de precio 1 | I52: Gasolina | K52: Suzuki | L52: 8817144 | M52: DL | N52: 1000A [V STROM] [2] | O52: MT 1000CC ABS | P52: 45100000 | Q52: 0.001 | R52: 45054900 | S52: 0.001 | T52: 45054900 | U52: 0.001 | V52: 45054900 | W52: 0.001 | X52: 45054900 | Y52: 0.001 | Z52: 45054900 | AA52: 0.03 | AB52: 43747000 | AT52: 0 | AV52: C31
A53: MotocicletaDoblePropositoTipoTurismomayora1100ccIntervalodeprecio1Yamaha XT 1200 ZE [SUPER TENERE] [2] MT 1200CC1Incolmotos Yamaha S.A. | B53: MotocicletaDoblePropositoTipoTurismomayora1100ccIntervalodeprecio1 | C53: Yamaha XT 1200 ZE [SUPER TENERE] [2] MT 1200CC1 | D53: Incolmotos Yamaha S.A. | E53: Motocicleta Doble Proposito Tipo Turismo | F53: mayor a 1.100cc | H53: Intervalo de precio 1 | I53: Gasolina | K53: Yamaha | L53: 9817186 | M53: XT | N53: 1200 ZE [SUPER TENERE] [2] | O53: MT 1200CC | P53: 53000000 | Q53: 0 | R53: 53000000 | S53: 0 | T53: 53000000 | U53: 0 | V53: 53000000 | W53: 0 | X53: 53000000 | Y53: 0 | Z53: 53000000 | AA53: 0 | AB53: 53000000 | AC53: 5025000 | AD53: 190800 | AE53: 135680 | AF53: 12720 | AG53: 527880 | AH53: 1168120 | AI53: 95400 | AJ53: 180200 | AK53: 169600 | AL53: 212000 | AM53: 84800 | AN53: 328600 | AO53: 127200 | AP53: 243800 | AQ53: 137800 | AR53: 2650000 | AS53: 387960 | AT53: 1 | AV53: C32
A54: MotocicletaElectricaTodasIntervalodeprecio1Stärker SUNNY 1Autotecnica Colombiana S.A.S | B54: MotocicletaElectricaTodasIntervalodeprecio1 | C54: Stärker SUNNY 1 | D54: Autotecnica Colombiana S.A.S | E54: Motocicleta Electrica | F54: Todas | H54: Intervalo de precio 1 | I54: N/A | K54: Stärker | M54: SUNNY | P54: 4190000 | R54: =$P54*(1-Q54) -> 4190000 | T54: =$P54*(1-S54) -> 4190000 | V54: =$P54*(1-U54) -> 4190000 | X54: =$P54*(1-W54) -> 4190000 | Z54: =$P54*(1-Y54) -> 4190000 | AB54: =$P54*(1-AA54) -> 4190000 | AC54: 1 | AD54: 130000 | AE54: 1500000 | AF54: 62000 | AG54: 390000 | AH54: 310000 | AI54: 214000 | AJ54: 245000 | AK54: 165000 | AL54: 335000 | AM54: 105000 | AN54: 135000 | AO54: 140000 | AP54: 465000 | AQ54: 71499.58816 | AR54: 285000 | AS54: 110000 | AT54: 1 | AV54: C33
A55: MotocicletaElectricaTodasIntervalodeprecio1Stärker SHIPPER ST 0Autotecnica Colombiana S.A.S | B55: MotocicletaElectricaTodasIntervalodeprecio1 | C55: Stärker SHIPPER ST 0 | D55: Autotecnica Colombiana S.A.S | E55: Motocicleta Electrica | F55: Todas | H55: Intervalo de precio 1 | I55: N/A | K55: Stärker | M55: SHIPPER ST | P55: 3390000 | R55: =$P55*(1-Q55) -> 3390000 | T55: =$P55*(1-S55) -> 3390000 | V55: =$P55*(1-U55) -> 3390000 | X55: =$P55*(1-W55) -> 3390000 | Z55: =$P55*(1-Y55) -> 3390000 | AB55: =$P55*(1-AA55) -> 3390000 | AC55: 1 | AD55: 130000 | AE55: 1500000 | AF55: 62000 | AG55: 390000 | AH55: 310000 | AI55: 214000 | AJ55: 245000 | AK55: 165000 | AL55: 335000 | AM55: 105000 | AN55: 135000 | AO55: 140000 | AP55: 465000 | AQ55: 71499.58816 | AR55: 285000 | AS55: 110000 | AT55: 0 | AV55: C33
A56: MotocicletaElectricaTodasIntervalodeprecio1Stärker SHIPPER 1Autotecnica Colombiana S.A.S | B56: MotocicletaElectricaTodasIntervalodeprecio1 | C56: Stärker SHIPPER 1 | D56: Autotecnica Colombiana S.A.S | E56: Motocicleta Electrica | F56: Todas | H56: Intervalo de precio 1 | I56: N/A | K56: Stärker | M56: SHIPPER | P56: 3990000 | R56: =$P56*(1-Q56) -> 3990000 | T56: =$P56*(1-S56) -> 3990000 | V56: =$P56*(1-U56) -> 3990000 | X56: =$P56*(1-W56) -> 3990000 | Z56: =$P56*(1-Y56) -> 3990000 | AB56: =$P56*(1-AA56) -> 3990000 | AC56: 1 | AD56: 130000 | AE56: 1500000 | AF56: 62000 | AG56: 390000 | AH56: 310000 | AI56: 214000 | AJ56: 245000 | AK56: 165000 | AL56: 335000 | AM56: 105000 | AN56: 135000 | AO56: 140000 | AP56: 465000 | AQ56: 71499.58816 | AR56: 285000 | AS56: 110000 | AT56: 1 | AV56: C33
A57: MotocicletaMopedTodosIntervalodeprecio1AKT AK 110S [2] MT 110CC1Colombiana De Comercio S.A. Siglas Corbeta S.A. y/o Alkosto S.A. | B57: MotocicletaMopedTodosIntervalodeprecio1 | C57: AKT AK 110S [2] MT 110CC1 | D57: Colombiana De Comercio S.A. Siglas Corbeta S.A. y/o Alkosto S.A. | E57: Motocicleta Moped | F57: Todos | H57: Intervalo de precio 1 | I57: Gasolina | K57: AKT | L57: 15917024 | M57: AK | N57: 110S [2] | O57: MT 110CC | P57: 2500000 | Q57: 0.08 | R57: 2300000 | S57: 0.08 | T57: 2300000 | U57: 0.08 | V57: 2300000 | W57: 0.08 | X57: 2300000 | Y57: 0.08 | Z57: 2300000 | AA57: 0.08 | AB57: 2300000 | AC57: 848000 | AD57: 0 | AE57: 106000 | AF57: 53000 | AG57: 307400 | AH57: 254400 | AI57: 95400 | AJ57: 93280 | AK57: 71020 | AL57: 31800 | AM57: 5300 | AN57: 190800 | AO57: 63600 | AP57: 151580 | AQ57: 106000 | AR57: 424000 | AS57: 53000 | AT57: 1 | AV57: C34
A58: MotocicletaMopedTodosIntervalodeprecio1Kymco ADVANCE 110 MT 110CC1Autotecnica Colombiana S.A.S | B58: MotocicletaMopedTodosIntervalodeprecio1 | C58: Kymco ADVANCE 110 MT 110CC1 | D58: Autotecnica Colombiana S.A.S | E58: Motocicleta Moped | F58: Todos | H58: Intervalo de precio 1 | I58: Gasolina | K58: Kymco | L58: 39617003 | M58: ADVANCE | N58: 110 | O58: MT 110CC | P58: 3700000 | Q58: 0.1 | R58: 3330000 | S58: 0.1 | T58: 3330000 | U58: 0.1 | V58: 3330000 | W58: 0.1 | X58: 3330000 | Y58: 0.1 | Z58: 3330000 | AA58: 0.1 | AB58: 3600000 | AC58: 1585000 | AD58: 130000 | AE58: 1500000 | AF58: 62000 | AG58: 390000 | AH58: 310000 | AI58: 214000 | AJ58: 245000 | AK58: 165000 | AL58: 335000 | AM58: 105000 | AN58: 135000 | AO58: 140000 | AP58: 465000 | AQ58: 71499.58816 | AR58: 285000 | AS58: 110000 | AT58: 1 | AV58: C34
A59: MotocicletaMopedTodosIntervalodeprecio2AKT FLEX CYCLONE 125 MT 125CC1Colombiana De Comercio S.A. Siglas Corbeta S.A. y/o Alkosto S.A. | B59: MotocicletaMopedTodosIntervalodeprecio2 | C59: AKT FLEX CYCLONE 125 MT 125CC1 | D59: Colombiana De Comercio S.A. Siglas Corbeta S.A. y/o Alkosto S.A. | E59: Motocicleta Moped | F59: Todos | H59: Intervalo de precio 2 | I59: Gasolina | K59: AKT | L59: 15917037 | M59: FLEX | N59: CYCLONE 125 | O59: MT 125CC | P59: 3500000 | Q59: 0.08 | R59: 3220000 | S59: 0.08 | T59: 3220000 | U59: 0.08 | V59: 3220000 | W59: 0.08 | X59: 3220000 | Y59: 0.08 | Z59: 3220000 | AA59: 0.08 | AB59: 3220000 | AC59: 848000 | AD59: 0 | AE59: 63600 | AF59: 53000 | AG59: 307400 | AH59: 254400 | AI59: 95400 | AJ59: 93280 | AK59: 71020 | AL59: 31800 | AM59: 5300 | AN59: 190800 | AO59: 63600 | AP59: 151580 | AQ59: 106000 | AR59: 424000 | AS59: 53000 | AT59: 1 | AV59: C35
A60: MotocicletaMopedTodosIntervalodeprecio2Kymco UNI-K 110 MT 110CC1Autotecnica Colombiana S.A.S | B60: MotocicletaMopedTodosIntervalodeprecio2 | C60: Kymco UNI-K 110 MT 110CC1 | D60: Autotecnica Colombiana S.A.S | E60: Motocicleta Moped | F60: Todos | H60: Intervalo de precio 2 | I60: Gasolina | K60: Kymco | L60: 10117015 | M60: UNI-K | N60: 110 | O60: MT 110CC | P60: 4200000 | Q60: 0.1 | R60: 3780000 | S60: 0.1 | T60: 3780000 | U60: 0.1 | V60: 3780000 | W60: 0.1 | X60: 3780000 | Y60: 0.1 | Z60: 3780000 | AA60: 0.1 | AB60: 3780000 | AC60: 1740000 | AD60: 130000 | AE60: 1160000 | AF60: 62000 | AG60: 390000 | AH60: 310000 | AI60: 214000 | AJ60: 245000 | AK60: 165000 | AL60: 335000 | AM60: 105000 | AN60: 135000 | AO60: 140000 | AP60: 465000 | AQ60: 71499.58816 | AR60: 285000 | AS60: 110000 | AT60: 1 | AV60: C35
A61: MotocicletaMopedTodosIntervalodeprecio3Suzuki VIVA R STYLE MT 113 CC1Suzuki Motor De Colombia S.A. | B61: MotocicletaMopedTodosIntervalodeprecio3 | C61: Suzuki VIVA R STYLE MT 113 CC1 | D61: Suzuki Motor De Colombia S.A. | E61: Motocicleta Moped | F61: Todos | H61: Intervalo de precio 3 | I61: Gasolina | K61: Suzuki | L61: 8817147 | M61: VIVA R | N61: STYLE | O61: MT 113 CC | P61: 6100000 | Q61: 0.12 | R61: 5368000 | S61: 0.125 | T61: 5337500 | U61: 0.126 | V61: 5331400 | W61: 0.127 | X61: 5325300 | Y61: 0.129 | Z61: 5313100 | AA61: 0.13 | AB61: 5307000 | AC61: 2226620.534 | AD61: NA | AE61: 1 | AF61: 489720 | AG61: NA | AH61: NA | AI61: NA | AJ61: 231333.234 | AK61: 231333.234 | AL61: 412296.434 | AM61: 118465.6 | AN61: 191224 | AO61: NA | AP61: 354464 | AQ61: 149248 | AR61: NA | AS61: NA | AT61: 1 | AV61: C36
A62: MotocicletaMopedTodosIntervalodeprecio3Yamaha CRYPTON [2] T115 MT 115CC1Incolmotos Yamaha S.A. | B62: MotocicletaMopedTodosIntervalodeprecio3 | C62: Yamaha CRYPTON [2] T115 MT 115CC1 | D62: Incolmotos Yamaha S.A. | E62: Motocicleta Moped | F62: Todos | H62: Intervalo de precio 3 | I62: Gasolina | K62: Yamaha | L62: 9817153 | M62: CRYPTON [2] | N62: T115 | O62: MT 115CC | P62: 5100000 | Q62: 0.04 | R62: 4896000 | S62: 0.045 | T62: 4870500 | U62: 0.05 | V62: 4845000 | W62: 0.055 | X62: 4819500 | Y62: 0.06 | Z62: 4794000 | AA62: 0.07 | AB62: 4743000 | AC62: 1961000 | AD62: 0 | AE62: 72080 | AF62: 7950 | AG62: 455800 | AH62: 1051308 | AI62: 79500 | AJ62: 159000 | AK62: 148400 | AL62: 190800 | AM62: 84800 | AN62: 307400 | AO62: 81620 | AP62: 222600 | AQ62: 116600 | AR62: 0 | AS62: 3180 | AT62: 1 | AV62: C36
A63: MotocicletaScooter90cc123ccIntervalodeprecio2Suzuki LETS 112 MT 112CC1Suzuki Motor De Colombia S.A. | B63: MotocicletaScooter90cc123ccIntervalodeprecio2 | C63: Suzuki LETS 112 MT 112CC1 | D63: Suzuki Motor De Colombia S.A. | E63: Motocicleta Scooter | F63: 90cc - 123cc | H63: Intervalo de precio 2 | I63: Gasolina | K63: Suzuki | L63: 8817146 | M63: LETS | N63: 112 | O63: MT 112CC | P63: 4800000 | Q63: 0.12 | R63: 4224000 | S63: 0.125 | T63: 4200000 | U63: 0.126 | V63: 4195200 | W63: 0.127 | X63: 4190400 | Y63: 0.129 | Z63: 4180800 | AA63: 0.13 | AB63: 4176000 | AC63: 1811807.756 | AD63: NA | AE63: 1 | AF63: 489720 | AG63: NA | AH63: NA | AI63: NA | AJ63: 231333.234 | AK63: 231333.234 | AL63: 412296.434 | AM63: 118465.6 | AN63: 191224 | AO63: NA | AP63: 354464 | AQ63: 149248 | AR63: NA | AS63: NA | AT63: 1 | AV63: C37
A64: MotocicletaScooter90cc123ccIntervalodeprecio2Yamaha FINO [2] AF115 AT 115CC1Incolmotos Yamaha S.A. | B64: MotocicletaScooter90cc123ccIntervalodeprecio2 | C64: Yamaha FINO [2] AF115 AT 115CC1 | D64: Incolmotos Yamaha S.A. | E64: Motocicleta Scooter | F64: 90cc - 123cc | H64: Intervalo de precio 2 | I64: Gasolina | K64: Yamaha | L64: 9817191 | M64: FINO [2] | N64: AF115 | O64: AT 115CC | P64: 5700000 | Q64: 0.03 | R64: 5529000 | S64: 0.032 | T64: 5517600 | U64: 0.033 | V64: 5511900 | W64: 0.034 | X64: 5506200 | Y64: 0.036 | Z64: 5494800 | AA64: 0.04 | AB64: 5472000 | AC64: 1810000 | AD64: 0 | AE64: 116600 | AF64: 7950 | AG64: 455800 | AH64: 1051308 | AI64: 95400 | AJ64: 180200 | AK64: 169600 | AL64: 212000 | AM64: 95400 | AN64: 349800 | AO64: 81620 | AP64: 254400 | AQ64: 116600 | AR64: 0 | AS64: 63600 | AT64: 1 | AV64: C37
A65: MotocicletaScooter123cc134ccIntervalodeprecio1AKT DYNAMIC 125 AT 125CC0Colombiana De Comercio S.A. Siglas Corbeta S.A. y/o Alkosto S.A. | B65: MotocicletaScooter123cc134ccIntervalodeprecio1 | C65: AKT DYNAMIC 125 AT 125CC0 | D65: Colombiana De Comercio S.A. Siglas Corbeta S.A. y/o Alkosto S.A. | E65: Motocicleta Scooter | F65: 123cc - 134cc | H65: Intervalo de precio 1 | I65: Gasolina | K65: AKT | L65: 15917013 | M65: DYNAMIC | N65: 125 | O65: AT 125CC | P65: 3600000 | Q65: 0.08 | R65: 3312000 | S65: 0.08 | T65: 3312000 | U65: 0.08 | V65: 3312000 | W65: 0.08 | X65: 3312000 | Y65: 0.08 | Z65: 3312000 | AA65: 0.08 | AB65: 3312000 | AC65: 848000 | AD65: 42400 | AE65: 74200 | AF65: 53000 | AG65: 307400 | AH65: 254400 | AI65: 95400 | AJ65: 93280 | AK65: 71020 | AL65: 31800 | AM65: 5300 | AN65: 190800 | AO65: 63600 | AP65: 151580 | AQ65: 106000 | AR65: 424000 | AS65: 53000 | AT65: 0 | AV65: C38
A66: MotocicletaScooter123cc134ccIntervalodeprecio2Kymco FLY 125 AT 125CC1Autotecnica Colombiana S.A.S | B66: MotocicletaScooter123cc134ccIntervalodeprecio2 | C66: =K66&" "&M66&" "&N66&" "&O66&AT66 -> Kymco FLY 125 AT 125CC1 | D66: Autotecnica Colombiana S.A.S | E66: Motocicleta Scooter | F66: 123cc - 134cc | H66: Intervalo de precio 2 | I66: Gasolina | K66: Kymco | L66: 10117016 | M66: FLY | N66: 125 | O66: AT 125CC | P66: 5600000 | Q66: 0.1 | R66: 5040000 | S66: 0.1 | T66: 5040000 | U66: 0.1 | V66: 5040000 | W66: 0.1 | X66: 5040000 | Y66: 0.1 | Z66: 5040000 | AA66: 0.1 | AB66: 5040000 | AC66: 1980000 | AD66: 118916.0544 | AE66: 1055600 | AF66: 56299.0688 | AG66: 356642 | AH66: 284559.6 | AI66: 195000 | AJ66: 223184 | AK66: 153212.8 | AL66: 307230.2688 | AM66: 96512 | AN66: 124358.1248 | AO66: 129438.2752 | AP66: 422240 | AQ66: 64999.6256 | AR66: 259376 | AS66: 101036 | AT66: 1 | AV66: C39
A67: =B67&C67&D67 -> MotocicletaScooter123cc134ccIntervalodeprecio2Kymco AGILITY RS NAKED AT 125CC1Autotecnica Colombiana S.A.S | B67: =SUBSTITUTE(SUBSTITUTE(SUBSTITUTE(E67&F67&H67,".","")," ",""),"-","") -> MotocicletaScooter123cc134ccIntervalodeprecio2 | C67: Kymco AGILITY RS NAKED AT 125CC1 | D67: Autotecnica Colombiana S.A.S | E67: Motocicleta Scooter | F67: 123cc - 134cc | H67: Intervalo de precio 2 | I67: Gasolina | K67: Kymco | L67: 10117013 | M67: AGILITY | N67: RS NAKED | O67: AT 125CC | P67: 6200000 | Q67: 0.1 | R67: =$P67*(1-Q67) -> 5580000 | S67: 0.1 | T67: =$P67*(1-S67) -> 5580000 | U67: 0.1 | V67: =$P67*(1-U67) -> 5580000 | W67: 0.1 | X67: =$P67*(1-W67) -> 5580000 | Y67: 0.1 | Z67: =$P67*(1-Y67) -> 5580000 | AA67: 0.1 | AB67: 5580000 | AC67: 2308680 | AD67: 137800 | AE67: 1229600 | AF67: 65720 | AG67: 413400 | AH67: 328600 | AI67: 226840 | AJ67: 259700 | AK67: 174900 | AL67: 355100 | AM67: 111300 | AN67: 143100 | AO67: 148400 | AP67: 492900 | AQ67: 75789.56345 | AR67: 302100 | AS67: 116600 | AT67: 1 | AV67: C39
A68: MotocicletaScooter123cc134ccIntervalodeprecio2Kymco AGILITY DIGITAL AT 125CC1Autotecnica Colombiana S.A.S | B68: MotocicletaScooter123cc134ccIntervalodeprecio2 | C68: Kymco AGILITY DIGITAL AT 125CC1 | D68: Autotecnica Colombiana S.A.S | E68: Motocicleta Scooter | F68: 123cc - 134cc | H68: Intervalo de precio 2 | I68: Gasolina | K68: Kymco | L68: 10117019 | M68: AGILITY | N68: DIGITAL | O68: AT 125CC | P68: 6700000 | Q68: 0.1 | R68: 6030000 | S68: 0.1 | T68: 6030000 | U68: 0.1 | V68: 6030000 | W68: 0.1 | X68: 6030000 | Y68: 0.1 | Z68: 6030000 | AA68: 0.1 | AB68: 6030000 | AC68: 2308680 | AD68: 137800 | AE68: 1229600 | AF68: 65720 | AG68: 413400 | AH68: 328600 | AI68: 226840 | AJ68: 259700 | AK68: 174900 | AL68: 355100 | AM68: 111300 | AN68: 143100 | AO68: 148400 | AP68: 492900 | AQ68: 75789.56345 | AR68: 302100 | AS68: 116600 | AT68: 1 | AV68: C39
A69: MotocicletaScooter123cc134ccIntervalodeprecio2Kymco URBAN S AT 125CC1Autotecnica Colombiana S.A.S | B69: MotocicletaScooter123cc134ccIntervalodeprecio2 | C69: Kymco URBAN S AT 125CC1 | D69: Autotecnica Colombiana S.A.S | E69: Motocicleta Scooter | F69: 123cc - 134cc | H69: Intervalo de precio 2 | I69: Gasolina | K69: Kymco | L69: 10117026 | M69: URBAN | N69: S | O69: AT 125CC | P69: 6400000 | Q69: 0.1 | R69: 5760000 | S69: 0.1 | T69: 5760000 | U69: 0.1 | V69: 5760000 | W69: 0.1 | X69: 5760000 | Y69: 0.1 | Z69: 5760000 | AA69: 0.1 | AB69: 6300000 | AC69: 2308680 | AD69: 137800 | AE69: 1229600 | AF69: 65720 | AG69: 413400 | AH69: 328600 | AI69: 226840 | AJ69: 259700 | AK69: 174900 | AL69: 355100 | AM69: 111300 | AN69: 143100 | AO69: 148400 | AP69: 492900 | AQ69: 75789.56345 | AR69: 285000 | AS69: 116600 | AT69: 1 | AV69: C39
A70: MotocicletaScooter123cc134ccIntervalodeprecio3Yamaha BWS X MOTARD [YW 125X] AT 125CC1Incolmotos Yamaha S.A. | B70: MotocicletaScooter123cc134ccIntervalodeprecio3 | C70: Yamaha BWS X MOTARD [YW 125X] AT 125CC1 | D70: Incolmotos Yamaha S.A. | E70: Motocicleta Scooter | F70: 123cc - 134cc | H70: Intervalo de precio 3 | I70: Gasolina | K70: Yamaha | L70: 9817179 | M70: BWS | N70: X MOTARD [YW 125X] | O70: AT 125CC | P70: 7600000 | Q70: 0 | R70: 7600000 | S70: 0 | T70: 7600000 | U70: 0 | V70: 7600000 | W70: 0 | X70: 7600000 | Y70: 0 | Z70: 7600000 | AA70: 0 | AB70: =$P70*(1-AA70) -> 7600000 | AC70: 1722000 | AD70: 0 | AE70: 68900 | AF70: 9540 | AG70: 527880 | AH70: 1168120 | AI70: 95400 | AJ70: 180200 | AK70: 169600 | AL70: 212000 | AM70: 95400 | AN70: 349800 | AO70: 95400 | AP70: 254400 | AQ70: 148400 | AR70: 0 | AS70: 3180 | AT70: 1 | AV70: C40
A71: MotocicletaScooter135cc160ccIntervalodeprecio1AKT JET 5 R AT 150CC0Colombiana De Comercio S.A. Siglas Corbeta S.A. y/o Alkosto S.A. | B71: MotocicletaScooter135cc160ccIntervalodeprecio1 | C71: AKT JET 5 R AT 150CC0 | D71: Colombiana De Comercio S.A. Siglas Corbeta S.A. y/o Alkosto S.A. | E71: Motocicleta Scooter | F71: 135cc - 160cc | H71: Intervalo de precio 1 | I71: Gasolina | K71: AKT | L71: 15917034 | M71: JET | N71: 5 R | O71: AT 150CC | P71: 5000000 | Q71: 0.08 | R71: 4600000 | S71: 0.08 | T71: 4600000 | U71: 0.08 | V71: 4600000 | W71: 0.08 | X71: 4600000 | Y71: 0.08 | Z71: 4600000 | AA71: 0.08 | AB71: 4600000 | AC71: 848000 | AD71: 42400 | AE71: 116600 | AF71: 53000 | AG71: 307400 | AH71: 254400 | AI71: 95400 | AJ71: 93280 | AK71: 71020 | AL71: 31800 | AM71: 5300 | AN71: 190800 | AO71: 63600 | AP71: 151580 | AQ71: 106000 | AR71: 424000 | AS71: 53000 | AT71: 0 | AV71: C41
A72: MotocicletaScooter135cc160ccIntervalodeprecio1Kymco FLY 150 AT 150CC1Autotecnica Colombiana S.A.S | B72: MotocicletaScooter135cc160ccIntervalodeprecio1 | C72: Kymco FLY 150 AT 150CC1 | D72: Autotecnica Colombiana S.A.S | E72: Motocicleta Scooter | F72: 135cc - 160cc | H72: Intervalo de precio 1 | I72: Gasolina | K72: Kymco | L72: 10117021 | M72: FLY | N72: 150 | O72: AT 150CC | P72: 6800000 | Q72: 0.1 | R72: 6120000 | S72: 0.1 | T72: 6120000 | U72: 0.1 | V72: 6120000 | W72: 0.1 | X72: 6120000 | Y72: 0.1 | Z72: 6120000 | AA72: 0.1 | AB72: 6120000 | AC72: 2308680 | AD72: 137800 | AE72: 1314400 | AF72: 65720 | AG72: 413400 | AH72: 328600 | AI72: 226840 | AJ72: 259700 | AK72: 174900 | AL72: 335000 | AM72: 111300 | AN72: 143100 | AO72: 148400 | AP72: 492900 | AQ72: 75789.56345 | AR72: 302100 | AS72: 116600 | AT72: 1 | AV72: C41
A73: MotocicletaScooter275cc325ccIntervalodeprecio1Kymco DOWNTOWN 300 AT 300CC1Autotecnica Colombiana S.A.S | B73: MotocicletaScooter275cc325ccIntervalodeprecio1 | C73: Kymco DOWNTOWN 300 AT 300CC1 | D73: Autotecnica Colombiana S.A.S | E73: Motocicleta Scooter | F73: 275cc - 325cc | H73: Intervalo de precio 1 | I73: Gasolina | K73: Kymco | L73: 10117011 | M73: DOWNTOWN | N73: 300 | O73: AT 300CC | P73: 15000000 | Q73: 0.06 | R73: =$P73*(1-Q73) -> 14100000 | S73: 0.06 | T73: =$P73*(1-S73) -> 14100000 | U73: 0.06 | V73: 14100000 | W73: 0.06 | X73: 14100000 | Y73: 0.06 | Z73: 14100000 | AA73: 0.06 | AB73: 17108000 | AC73: 2862000 | AD73: 137800 | AE73: 1314400 | AF73: 65720 | AG73: 413400 | AH73: 328600 | AI73: 226840 | AJ73: 259700 | AK73: 174900 | AL73: 355100 | AM73: 111300 | AN73: 143100 | AO73: 148400 | AP73: 465000 | AQ73: 75789.56345 | AR73: 302100 | AS73: 116600 | AT73: 1 | AV73: C42
A74: MotocicletaDeportivayCalle191cc220ccintervalodeprecio3Auteco BAJAJ PULSAR RS 200 MT 200CC1Autotecnica Colombiana S.A.S | B74: MotocicletaDeportivayCalle191cc220ccintervalodeprecio3 | C74: Auteco BAJAJ PULSAR RS 200 MT 200CC1 | D74: Autotecnica Colombiana S.A.S | E74: Motocicleta Deportiva y Calle | F74: 191 cc - 220cc | H74: intervalo de precio 3 | I74: Gasolina | K74: Auteco | L74: 317067 | M74: BAJAJ | N74: PULSAR RS 200 | O74: MT 200CC | P74: 10000000 | Q74: 0.1 | R74: =+P74*(1-Q74) -> 9000000 | S74: 0.1 | T74: =$P74*(1-S74) -> 9000000 | U74: 0.1 | V74: 9000000 | W74: 0.1 | X74: 9000000 | Y74: 0.1 | Z74: 9000000 | AA74: 0.1 | AB74: 10710000 | AC74: 3392000 | AD74: 408100 | AE74: 1590000 | AF74: 180200 | AG74: 498200 | AH74: 1038800 | AI74: 259700 | AJ74: 296800 | AK74: 206700 | AL74: 408100 | AM74: 132500 | AN74: 339200 | AO74: 212000 | AP74: 561800 | AQ74: 137800 | AR74: 344500 | AS74: 137800 | AT74: 1 | AV74: C43
A75: MotocarroEstacasIntervalodeprecio1Auteco CAMELLITO ESTACAS MT 175CC0Autotecnica Colombiana S.A.S | B75: MotocarroEstacasIntervalodeprecio1 | C75: Auteco CAMELLITO ESTACAS MT 175CC0 | D75: Autotecnica Colombiana S.A.S | E75: Motocarro | F75: Estacas | H75: Intervalo de precio 1 | I75: Gasolina | K75: Auteco | L75: 319010 | M75: CAMELLITO | N75: ESTACAS | O75: MT 175CC | P75: 9300000 | Q75: 0.01 | R75: =+P75*(1-Q75) -> 9207000 | S75: 0.01 | T75: 9207000 | U75: 0.01 | V75: 9207000 | W75: 0.01 | X75: 9207000 | Y75: 0.01 | Z75: 9207000 | AA75: 0.01 | AB75: 9207000 | AC75: 3870000 | AD75: 500000 | AE75: 1500000 | AF75: 170000 | AG75: 470000 | AH75: 980000 | AI75: 245000 | AJ75: 280000 | AK75: 195000 | AL75: 385000 | AM75: 125000 | AN75: 320000 | AO75: 200000 | AP75: 530000 | AQ75: 130000 | AR75: 325000 | AS75: 130000 | AT75: 0 | AV75: C44
A76: MotocicletaDeportivayCalle191cc220ccIntervalodeprecio1TVS APACHE 200 RTR200 MT 200CC1Colombiana De Comercio S.A. Siglas Corbeta S.A. y/o Alkosto S.A. | B76: MotocicletaDeportivayCalle191cc220ccIntervalodeprecio1 | C76: TVS APACHE 200 RTR200 MT 200CC1 | D76: Colombiana De Comercio S.A. Siglas Corbeta S.A. y/o Alkosto S.A. | E76: Motocicleta Deportiva y Calle | F76: 191 cc - 220cc | H76: Intervalo de precio 1 | I76: Gasolina | K76: TVS | L76: 29517010 | M76: APACHE 200 | N76: RTR200 | O76: MT 200CC | P76: 7200000 | Q76: 0.08 | R76: =+$P$76*(1-Q76) -> 6624000 | S76: 0.08 | T76: =+$P$76*(1-S76) -> 6624000 | U76: 0.08 | V76: =+$P$76*(1-U76) -> 6624000 | W76: 0.08 | X76: =+$P$76*(1-W76) -> 6624000 | Y76: 0.08 | Z76: =+$P$76*(1-Y76) -> 6624000 | AA76: 0.08 | AB76: =+$P$76*(1-AA76) -> 6624000 | AC76: 848000 | AD76: 42400 | AE76: 116600 | AF76: 53000 | AG76: 307400 | AH76: 254400 | AI76: 95400 | AJ76: 93280 | AK76: 71020 | AL76: 31800 | AM76: 5300 | AN76: 190800 | AO76: 63600 | AP76: 151580 | AQ76: 106000 | AR76: 424000 | AS76: 53000 | AT76: 1 | AV76: C17
A77: MotocicletaDoblePropositoTipoEnduro100cc125ccIntervalodeprecio1AKT TT 125 MT 125CC1Colombiana De Comercio S.A. Siglas Corbeta S.A. y/o Alkosto S.A. | B77: MotocicletaDoblePropositoTipoEnduro100cc125ccIntervalodeprecio1 | C77: AKT TT 125 MT 125CC1 | D77: Colombiana De Comercio S.A. Siglas Corbeta S.A. y/o Alkosto S.A. | E77: Motocicleta Doble Proposito Tipo Enduro | F77: 100cc - 125cc | H77: Intervalo de precio 1 | I77: Gasolina | K77: AKT | L77: 15917031 | M77: TT | N77: 125 | O77: MT 125CC | P77: 4200000 | Q77: 0.08 | R77: =+$P$77*(1-Q77) -> 3864000 | S77: 0.08 | T77: =+$P$77*(1-S77) -> 3864000 | U77: 0.08 | V77: =+$P$77*(1-U77) -> 3864000 | W77: 0.08 | X77: =+$P$77*(1-W77) -> 3864000 | Y77: 0.08 | Z77: =+$P$77*(1-Y77) -> 3864000 | AA77: 0.08 | AB77: =+$P$77*(1-AA77) -> 3864000 | AC77: 848000 | AD77: 42400 | AE77: 110000 | AF77: 53000 | AG77: 307400 | AH77: 254400 | AI77: 95400 | AJ77: 93280 | AK77: 71020 | AL77: 31800 | AM77: 5300 | AN77: 190800 | AO77: 63600 | AP77: 151580 | AQ77: 106000 | AR77: 424000 | AS77: 53000 | AT77: 1 | AV77: C45
A78: MotocicletaDoblePropositoTipoEnduro191cc225ccIntervalodeprecio1AKT TTR200 200 0Colombiana De Comercio S.A. Siglas Corbeta S.A. y/o Alkosto S.A. | B78: MotocicletaDoblePropositoTipoEnduro191cc225ccIntervalodeprecio1 | C78: AKT TTR200 200 0 | D78: Colombiana De Comercio S.A. Siglas Corbeta S.A. y/o Alkosto S.A. | E78: Motocicleta Doble Proposito Tipo Enduro | F78: 191cc - 225cc | H78: Intervalo de precio 1 | I78: Gasolina | K78: AKT | L78: 15917046 | M78: TTR200 | N78: 200 | P78: 4900000 | Q78: 0.08 | R78: =$P$78*(1-Q78) -> 4508000 | S78: 0.08 | T78: =$P$78*(1-S78) -> 4508000 | U78: 0.08 | V78: =$P$78*(1-U78) -> 4508000 | W78: 0.08 | X78: =$P$78*(1-W78) -> 4508000 | Y78: 0.08 | Z78: =$P$78*(1-Y78) -> 4508000 | AA78: 0.08 | AB78: =$P$78*(1-AA78) -> 4508000 | AC78: 800000 | AD78: 40000 | AE78: 110000 | AF78: 50000 | AG78: 290000 | AH78: 240000 | AI78: 90000 | AJ78: 88000 | AK78: 67000 | AL78: 30000 | AM78: 5000 | AN78: 180000 | AO78: 60000 | AP78: 143000 | AQ78: 100000 | AR78: 400000 | AS78: 50000 | AT78: 0
A79: MotocicletaDoblePropositoTipoTurismo600cc670ccIntervalodeprecio1Kawasaki VERSYS [2] KLE650 MT 650CC ABS1Autotecnica Colombiana S.A.S | B79: MotocicletaDoblePropositoTipoTurismo600cc670ccIntervalodeprecio1 | C79: Kawasaki VERSYS [2] KLE650 MT 650CC ABS1 | D79: Autotecnica Colombiana S.A.S | E79: Motocicleta Doble Proposito Tipo Turismo | F79: 600cc - 670cc | H79: Intervalo de precio 1 | I79: Gasolina | K79: Kawasaki | L79: 4517133 | M79: VERSYS [2] | N79: KLE650 | O79: MT 650CC ABS | P79: 34000000 | Q79: 0.05 | R79: =$P$79*(1-Q79) -> 32300000 | S79: 0.05 | T79: =$P$79*(1-S79) -> 32300000 | U79: 0.05 | V79: =$P$79*(1-U79) -> 32300000 | W79: 0.05 | X79: =$P$79*(1-W79) -> 32300000 | Y79: 0.05 | Z79: =$P$79*(1-Y79) -> 32300000 | AA79: 0.05 | AB79: 32300000 | AC79: 6360000 | AD79: 424000 | AE79: 1590000 | AF79: 212000 | AG79: 530000 | AH79: 1060000 | AI79: 318000 | AJ79: 318000 | AK79: 265000 | AL79: 424000 | AM79: 190800 | AN79: 381600 | AO79: 265000 | AP79: 636000 | AQ79: 212000 | AR79: 371000 | AS79: 159000 | AT79: 1 | AV79: C28
A80: MotocicletaDeportivayCalle90cc123ccIntervalodeprecio2Auteco BAJAJ BOXER BM CLASSIC [2] MT 100CC0Autotecnica Colombiana S.A.S | B80: MotocicletaDeportivayCalle90cc123ccIntervalodeprecio2 | C80: Auteco BAJAJ BOXER BM CLASSIC [2] MT 100CC0 | D80: Autotecnica Colombiana S.A.S | E80: Motocicleta Deportiva y Calle | F80: 90cc - 123cc | H80: Intervalo de precio 2 | I80: Gasolina | K80: Auteco | L80: 317055 | M80: BAJAJ | N80: BOXER BM CLASSIC [2] | O80: MT 100CC | P80: 3000000 | Q80: 0.05 | R80: =$P$80*(1-Q80) -> 2850000 | S80: 0.05 | T80: =$P$80*(1-S80) -> 2850000 | U80: 0.05 | V80: =$P$80*(1-U80) -> 2850000 | W80: 0.05 | X80: =$P$80*(1-W80) -> 2850000 | Y80: 0.05 | Z80: =$P$80*(1-Y80) -> 2850000 | AA80: 0.05 | AB80: =$P$80*(1-AA80) -> 2850000 | AC80: 2000000 | AD80: 400000 | AE80: 1320000 | AF80: 200000 | AG80: 500000 | AH80: 1000000 | AI80: 300000 | AJ80: 300000 | AK80: 250000 | AL80: 400000 | AM80: 180000 | AN80: 360000 | AO80: 250000 | AP80: 600000 | AQ80: 200000 | AR80: 350000 | AS80: 150000 | AT80: 0 | AV80: C8
A81: MotocicletaScooter123cc134ccIntervalodeprecio2Kymco TWIST 125 AT 125CC1Autotecnica Colombiana S.A.S | B81: MotocicletaScooter123cc134ccIntervalodeprecio2 | C81: Kymco TWIST 125 AT 125CC1 | D81: Autotecnica Colombiana S.A.S | E81: Motocicleta Scooter | F81: 123cc - 134cc | H81: Intervalo de precio 2 | I81: Gasolina | J81: TWIST 125 AT 125CC | K81: Kymco | L81: 10117023 | M81: TWIST | N81: 125 | O81: AT 125CC | P81: 4500000 | Q81: 0.1 | R81: =$P$81*(1-Q81) -> 4050000 | S81: 0.1 | T81: =$P$81*(1-S81) -> 4050000 | U81: 0.1 | V81: =$P$81*(1-U81) -> 4050000 | W81: 0.1 | X81: =$P$81*(1-W81) -> 4050000 | Y81: 0.1 | Z81: =$P$81*(1-Y81) -> 4050000 | AA81: 0.1 | AB81: =$P$81*(1-AA81) -> 4050000 | AC81: 3710000 | AD81: 424000 | AE81: 1399200 | AF81: 212000 | AG81: 530000 | AH81: 1060000 | AI81: 318000 | AJ81: 318000 | AK81: 265000 | AL81: 424000 | AM81: 190800 | AN81: 381600 | AO81: 265000 | AP81: 636000 | AQ81: 212000 | AR81: 371000 | AS81: 159000 | AT81: 1 | AV81: C39
A82: MotocicletaScooter90cc123ccIntervalodeprecio1Honda DIO 110 AT 110CC1Fanalca | B82: MotocicletaScooter90cc123ccIntervalodeprecio1 | C82: Honda DIO 110 AT 110CC1 | D82: Fanalca | E82: Motocicleta Scooter | F82: 90cc - 123cc | H82: Intervalo de precio 1 | I82: Gasolina | K82: Honda | L82: 3417179 | M82: DIO | N82: 110 | O82: AT 110CC | P82: 4200000 | Q82: 0 | R82: =$P$82*(1-Q82) -> 4200000 | S82: 0.04 | T82: =$P$82*(1-S82) -> 4032000 | U82: 0.06 | V82: =$P$82*(1-U82) -> 3948000 | W82: 0.08 | X82: =$P$82*(1-W82) -> 3864000 | Y82: 0.1 | Z82: =$P$82*(1-Y82) -> 3780000 | AA82: 0.12 | AB82: =$P$82*(1-AA82) -> 3696000 | AC82: 2142018 | AD82: 116600 | AE82: 80000 | AF82: 15000 | AG82: 442900 | AH82: 1030000 | AI82: 360000 | AJ82: 154500 | AK82: 154500 | AL82: 166600 | AM82: 83300 | AN82: 293550 | AO82: 116600 | AP82: 154500 | AQ82: 92700 | AR82: 210000 | AS82: 72100 | AT82: 1 | AV82: C46
A83: MotocicletaDoblePropositoTipoTurismo750cc850ccIntervalodeprecio3Honda VFR [2] 800X MT 800CC1Fanalca | B83: MotocicletaDoblePropositoTipoTurismo750cc850ccIntervalodeprecio3 | C83: Honda VFR [2] 800X MT 800CC1 | D83: Fanalca | E83: Motocicleta Doble Proposito Tipo Turismo | F83: 750cc - 850cc | H83: Intervalo de precio 3 | I83: Gasolina | K83: Honda | L83: 3417176 | M83: VFR [2] | N83: 800X | O83: MT 800CC | P83: 49000000 | Q83: 0 | R83: =$P$83*(1-Q83) -> 49000000 | S83: 0.02 | T83: =$P$83*(1-S83) -> 48020000 | U83: 0.02 | V83: =$P$83*(1-U83) -> 48020000 | W83: 0.025 | X83: =$P$83*(1-W83) -> 47775000 | Y83: 0.03 | Z83: =$P$83*(1-Y83) -> 47530000 | AA83: 0.04 | AB83: =$P$83*(1-AA83) -> 47040000 | AC83: 8637787 | AD83: 300000 | AE83: 80000 | AF83: 15000 | AG83: 442900 | AH83: 1030000 | AI83: 360000 | AJ83: 154500 | AK83: 154500 | AL83: 166600 | AM83: 83300 | AN83: 293550 | AO83: 116600 | AP83: 154500 | AQ83: 92700 | AR83: 210000 | AS83: 150000 | AT83: 1 | AV83: C47
A84: MotocicletaDoblePropositoTipoTurismo671cc749ccIntervalodeprecio1Honda NC [2] 750X D TP 750CC1Fanalca | B84: MotocicletaDoblePropositoTipoTurismo671cc749ccIntervalodeprecio1 | C84: Honda NC [2] 750X D TP 750CC1 | D84: Fanalca | E84: Motocicleta Doble Proposito Tipo Turismo | F84: 671cc - 749cc | H84: Intervalo de precio 1 | I84: Gasolina | K84: Honda | L84: 3417188 | M84: NC [2] | N84: 750X D | O84: TP 750CC | P84: 43000000 | Q84: 0 | R84: =$P$84*(1-Q84) -> 43000000 | S84: 0.02 | T84: =$P$84*(1-S84) -> 42140000 | U84: 0.02 | V84: =$P$84*(1-U84) -> 42140000 | W84: 0.025 | X84: =$P$84*(1-W84) -> 41925000 | Y84: 0.03 | Z84: =$P$84*(1-Y84) -> 41710000 | AA84: 0.04 | AB84: =$P$84*(1-AA84) -> 41280000 | AC84: 8637787 | AD84: 300000 | AE84: 100000 | AF84: 15000 | AG84: 442900 | AH84: 1030000 | AI84: 360000 | AJ84: 154500 | AK84: 154500 | AL84: 166600 | AM84: 83300 | AN84: 293550 | AO84: 116600 | AP84: 195700 | AQ84: 92700 | AR84: 210000 | AS84: 150000 | AT84: 1 | AV84: C48
A85: MotocicletaDoblePropositoTipoEnduro126cc165ccIntervalodeprecio1Honda XR 150L MT 150CC1Fanalca | B85: MotocicletaDoblePropositoTipoEnduro126cc165ccIntervalodeprecio1 | C85: Honda XR 150L MT 150CC1 | D85: Fanalca | E85: Motocicleta Doble Proposito Tipo Enduro | F85: 126cc - 165cc | H85: Intervalo de precio 1 | I85: Gasolina | K85: Honda | L85: 3417167 | M85: XR | N85: 150L | O85: MT 150CC | P85: 7200000 | Q85: 0 | R85: =$P$85*(1-Q85) -> 7200000 | S85: 0.04 | T85: =$P$85*(1-S85) -> 6912000 | U85: 0.06 | V85: =$P$85*(1-U85) -> 6768000 | W85: 0.08 | X85: =$P$85*(1-W85) -> 6624000 | Y85: 0.1 | Z85: =$P$85*(1-Y85) -> 6480000 | AA85: 0.12 | AB85: =$P$85*(1-AA85) -> 6336000 | AC85: 3460658 | AD85: 300000 | AE85: 100000 | AF85: 15000 | AG85: 442900 | AH85: 1030000 | AI85: 360000 | AJ85: 154500 | AK85: 154500 | AL85: 166600 | AM85: 83300 | AN85: 293550 | AO85: 116600 | AP85: 195700 | AQ85: 92700 | AR85: 210000 | AS85: 150000 | AT85: 1 | AV85: C49
A86: Cuatrimotos426cc500ccIntervalodeprecio2Honda TRX 500 F AT 475 CC 4X41Fanalca | B86: Cuatrimotos426cc500ccIntervalodeprecio2 | C86: Honda TRX 500 F AT 475 CC 4X41 | D86: Fanalca | E86: Cuatrimotos | F86: 426cc - 500cc | H86: Intervalo de precio 2 | I86: Gasolina | K86: Honda | L86: 3419002 | M86: TRX | N86: 500 F | O86: AT 475 CC 4X4 | P86: 29000000 | Q86: 0 | R86: =$P$86*(1-Q86) -> 29000000 | S86: 0.02 | T86: =$P$86*(1-S86) -> 28420000 | U86: 0.02 | V86: =$P$86*(1-U86) -> 28420000 | W86: 0.025 | X86: =$P$86*(1-W86) -> 28275000 | Y86: 0.03 | Z86: =$P$86*(1-Y86) -> 28130000 | AA86: 0.04 | AB86: =$P$86*(1-AA86) -> 27840000 | AC86: 3699172.724 | AD86: 300000 | AE86: 100000 | AF86: 15000 | AG86: 442900 | AH86: 1030000 | AI86: 360000 | AJ86: 154500 | AK86: 154500 | AL86: 166600 | AM86: 83300 | AN86: 293550 | AO86: 116600 | AP86: 195700 | AQ86: 92700 | AR86: 210000 | AS86: 150000 | AT86: 1 | AV86: C51
A87: =B87&C87&D87 -> MotocicletaDoblePropositoTipoEnduro191cc225ccIntervalodeprecio1AKT TT 200 MT 200CC1Colombiana De Comercio S.A. Siglas Corbeta S.A. y/o Alkosto S.A. | B87: =SUBSTITUTE(SUBSTITUTE(SUBSTITUTE(E87&F87&H87,".","")," ",""),"-","") -> MotocicletaDoblePropositoTipoEnduro191cc225ccIntervalodeprecio1 | C87: AKT TT 200 MT 200CC1 | D87: Colombiana De Comercio S.A. Siglas Corbeta S.A. y/o Alkosto S.A. | E87: Motocicleta Doble Proposito Tipo Enduro | F87: 191cc - 225cc | H87: Intervalo de precio 1 | I87: Gasolina | K87: AKT | L87: 15917046 | M87: TT | N87: 200 | O87: MT 200CC | P87: 4900000 | Q87: 0.08 | R87: 4508000 | S87: 0.08 | T87: 4508000 | U87: 0.08 | V87: 4508000 | W87: 0.08 | X87: 4508000 | Y87: 0.08 | Z87: 4508000 | AA87: 0.08 | AB87: 4508000 | AC87: 880000 | AD87: 40000 | AE87: 110000 | AF87: 50000 | AG87: 290000 | AH87: 450000 | AI87: 350000 | AJ87: 120000 | AK87: 80000 | AL87: 50000 | AM87: 15000 | AN87: 180000 | AO87: 80000 | AP87: 180000 | AQ87: 100000 | AR87: 400000 | AS87: 50000 | AT87: 1
A88: MotocicletaDoblePropositoTipoEnduro325cc599ccIntervalodeprecio1Honda CB 500X MT 500CC1Fanalca | B88: MotocicletaDoblePropositoTipoEnduro325cc599ccIntervalodeprecio1 | C88: Honda CB 500X MT 500CC1 | D88: Fanalca | E88: Motocicleta Doble Proposito Tipo Enduro | F88: 325cc - 599cc | H88: Intervalo de precio 1 | I88: Gasolina | K88: Honda | L88: 3417170 | M88: CB | N88: 500X | O88: MT 500CC | P88: 32300000 | Q88: 0 | R88: 32300000 | S88: 0.04 | T88: 31008000 | U88: 0.06 | V88: 30362000 | W88: 0.08 | X88: 29716000 | Y88: 0.1 | Z88: 29070000 | AA88: 0.12 | AB88: 28424000 | AC88: 6266859 | AD88: 123600 | AE88: 100000 | AF88: 15000 | AG88: 442900 | AH88: 1030000 | AI88: 600000 | AJ88: 154500 | AK88: 154500 | AL88: 166600 | AM88: 83300 | AN88: 293550 | AO88: 116600 | AP88: 195700 | AQ88: 92700 | AR88: 210000 | AS88: 72100 | AT88: 1
A89: MotocicletaDeportivayCalle275cc324ccIntervalodeprecio1Kawasaki VERSYS X KLE 300 MT 300CC1Autotecnica Colombiana S.A.S | B89: MotocicletaDeportivayCalle275cc324ccIntervalodeprecio1 | C89: Kawasaki VERSYS X KLE 300 MT 300CC1 | D89: Autotecnica Colombiana S.A.S | E89: Motocicleta Deportiva y Calle | F89: 275cc - 324cc | H89: Intervalo de precio 1 | I89: Gasolina | J89: VERSYS X KLE 300 MT 300CC | K89: Kawasaki | L89: 4517144 | M89: VERSYS X | N89: KLE 300 | O89: MT 300CC | P89: 19500000 | Q89: 0 | R89: =$P$89*(1-Q89) -> 19500000 | S89: 0 | T89: =$P$89*(1-S89) -> 19500000 | U89: 0.02 | V89: =$P$89*(1-U89) -> 19110000 | W89: 0.03 | X89: =$P$89*(1-W89) -> 18915000 | Y89: 0.04 | Z89: =$P$89*(1-Y89) -> 18720000 | AA89: 0.05 | AB89: =$P$89*(1-AA89) -> 18525000 | AC89: 6360000 | AD89: 500000 | AE89: 1590000 | AF89: 212000 | AG89: 530000 | AH89: 1060000 | AI89: 318000 | AJ89: 318000 | AK89: 265000 | AL89: 424000 | AM89: 190800 | AN89: 381600 | AO89: 265000 | AP89: 636000 | AQ89: 212000 | AR89: 371000 | AS89: 200000 | AT89: 1

Sheet tempListas (hidden)
A1: Proveedor
A2: Suzuki Motor De Colombia S.A.

Sheet Hoja2 (hidden)
A3: Etiquetas de fila
A4: AKT AK 110S [2] MT 110CC
A5: Colombiana De Comercio S.A. Siglas Corbeta S.A. y/o Alkosto S.A.
A6: AKT AK 125 NKD FRENO DISCO MT 125CC
A7: Colombiana De Comercio S.A. Siglas Corbeta S.A. y/o Alkosto S.A.
A8: AKT AK CR5 MT 180CC
A9: Colombiana De Comercio S.A. Siglas Corbeta S.A. y/o Alkosto S.A.
A10: AKT CARGUERO 200 ZW [BAJO] MT 200CC
A11: Colombiana De Comercio S.A. Siglas Corbeta S.A. y/o Alkosto S.A.
A12: AKT DYNAMIC 125 AT 125CC
A13: Colombiana De Comercio S.A. Siglas Corbeta S.A. y/o Alkosto S.A.
A14: AKT EVO R3 125 MT 125CC
A15: Colombiana De Comercio S.A. Siglas Corbeta S.A. y/o Alkosto S.A.
A16: AKT FLEX CYCLONE 125 MT 125CC
A17: Colombiana De Comercio S.A. Siglas Corbeta S.A. y/o Alkosto S.A.
A18: AKT JET 5 R AT 150CC
A19: Colombiana De Comercio S.A. Siglas Corbeta S.A. y/o Alkosto S.A.
A20: AKT RTX 150 UNISHOCK MT 150CC
A21: Colombiana De Comercio S.A. Siglas Corbeta S.A. y/o Alkosto S.A.
A22: AKT TTR 180 MT 180CC
A23: Colombiana De Comercio S.A. Siglas Corbeta S.A. y/o Alkosto S.A.
A24: AKT TTX 180 MT 180CC
A25: Colombiana De Comercio S.A. Siglas Corbeta S.A. y/o Alkosto S.A.
A26: Auteco BAJAJ AVENGER 220 MT 220CC
A27: Autotecnica Colombiana S.A.S
A28: Auteco BAJAJ BOXER CT100 MT 100CC
A29: Autotecnica Colombiana S.A.S
A30: Auteco BAJAJ DISCOVER [3] 125 ST MT 125CC
A31: Autotecnica Colombiana S.A.S
A32: Auteco BAJAJ DISCOVER [3] 150 ST MT 150CC
A33: Autotecnica Colombiana S.A.S
A34: Auteco BAJAJ DISCOVER 150F MT 150CC
A35: Autotecnica Colombiana S.A.S
A36: Auteco BAJAJ PULSAR 135 LS MT 135CC
A37: Autotecnica Colombiana S.A.S
A38: Auteco BAJAJ PULSAR 150 NS MT 150CC
A39: Autotecnica Colombiana S.A.S
A40: Auteco BAJAJ PULSAR 200 NS MT 200CC
A41: Autotecnica Colombiana S.A.S
A42: Auteco BAJAJ PULSAR AS 200 MT 200CC
A43: Autotecnica Colombiana S.A.S
A44: Auteco BAJAJ PULSAR UG MT 180CC
A45: Autotecnica Colombiana S.A.S
A46: Honda CB 110 MT 110CC
A47: Fanalca
A48: Honda CB 500 F MT 500CC ABS
A49: Fanalca
A50: Honda DREAM NEO MT 110CC
A51: Fanalca
A52: Honda TRX 680 FA AT 680CC 4X4
A53: Fanalca
A54: Honda XRE 300 MT 300CC
A55: Fanalca
A56: Kawasaki BRUTE FORCE KVF300 AT 300CC 4X2
A57: Autotecnica Colombiana S.A.S
A58: Kawasaki BRUTE FORCE KVF750HCF AT 750CC 4X4
A59: Autotecnica Colombiana S.A.S
A60: Kawasaki KLR KL650 MT 650CC
A61: Autotecnica Colombiana S.A.S
A62: Kawasaki KLX 150 MT 150CC
A63: Autotecnica Colombiana S.A.S
A64: Kawasaki KLX 250 MT 250CC
A65: Autotecnica Colombiana S.A.S
A66: Kawasaki Z Z250 SL MT 250CC
A67: Autotecnica Colombiana S.A.S
A68: Kymco AGILITY DIGITAL AT 125CC
A69: Autotecnica Colombiana S.A.S
A70: Kymco AGILITY RS NAKED AT 125CC
A71: Autotecnica Colombiana S.A.S
A72: Kymco DOWNTOWN 300 AT 300CC
A73: Autotecnica Colombiana S.A.S
A74: Kymco FLY 125 AT 125CC
A75: Autotecnica Colombiana S.A.S
A76: Kymco FLY 150 AT 150CC
A77: Autotecnica Colombiana S.A.S
A78: Kymco MAXXER 250 AT 250CC
A79: Autotecnica Colombiana S.A.S
A80: Kymco MAXXER 375 AT 366CC 4X4
A81: Autotecnica Colombiana S.A.S
A82: Kymco ROCKET 125 AT 125CC
A83: Autotecnica Colombiana S.A.S
A84: Kymco TRACK 125 MT 125CC
A85: Autotecnica Colombiana S.A.S
A86: Kymco UNI-K 110 MT 110CC
A87: Autotecnica Colombiana S.A.S
A88: Stärker SHIPPER
A89: Autotecnica Colombiana S.A.S
A90: Stärker SHIPPER ST
A91: Autotecnica Colombiana S.A.S
A92: Stärker SUNNY
A93: Autotecnica Colombiana S.A.S
A94: Suzuki AX4 110 MT 110CC
A95: Suzuki Motor De Colombia S.A.
A96: Suzuki DL 1000A [V STROM] [2] MT 1000CC ABS
A97: Suzuki Motor De Colombia S.A.
A98: Suzuki DL 650N [V STROM] MT 650CC ABS
A99: Suzuki Motor De Colombia S.A.
A100: Suzuki DR 650 MT 650CC
A101: Suzuki Motor De Colombia S.A.
A102: Suzuki DRX 200 MT 200CC
A103: Suzuki Motor De Colombia S.A.
A104: Suzuki GIXXER 150 MT 150CC
A105: Suzuki Motor De Colombia S.A.
A106: Suzuki GN 125H MT 125CC
A107: Suzuki Motor De Colombia S.A.
A108: Suzuki GS 125 MT 125CC
A109: Suzuki Motor De Colombia S.A.
A110: Suzuki GS 500 MT 500CC
A111: Suzuki Motor De Colombia S.A.
A112: Suzuki INAZUMA GW250 MT 250CC
A113: Suzuki Motor De Colombia S.A.
A114: Suzuki KINGQUAD LTA 750 AT 750CC 4X4
A115: Suzuki Motor De Colombia S.A.
A116: Suzuki LETS 112 MT 112CC
A117: Suzuki Motor De Colombia S.A.
A118: Suzuki LTF 250 MT 250CC 4X2
A119: Suzuki Motor De Colombia S.A.
A120: Suzuki VIVA R STYLE MT 113 CC
A121: Suzuki Motor De Colombia S.A.
A122: TVS APACHE [2] RTR160 MT 160CC
A123: Colombiana De Comercio S.A. Siglas Corbeta S.A. y/o Alkosto S.A.
A124: TVS APACHE [2] RTR180 MT 180CC
A125: Colombiana De Comercio S.A. Siglas Corbeta S.A. y/o Alkosto S.A.
A126: TVS STAR [2] SPORT MT 100CC
A127: Colombiana De Comercio S.A. Siglas Corbeta S.A. y/o Alkosto S.A.
A128: Yamaha BWS X MOTARD [YW 125X] AT 125CC
A129: Incolmotos Yamaha S.A.
A130: Yamaha CRYPTON [2] T115 MT 115CC
A131: Incolmotos Yamaha S.A.
A132: Yamaha FINO [2] AF115 AT 115CC
A133: Incolmotos Yamaha S.A.
A134: Yamaha FZ-S FI 2.0 MT 150CC
A135: Incolmotos Yamaha S.A.
A136: Yamaha LIBERO 125 RV MT 125CC
A137: Incolmotos Yamaha S.A.
A138: Yamaha MT 09 TRACER MT 850CC ABS
A139: Incolmotos Yamaha S.A.
A140: Yamaha XT 1200 ZE [SUPER TENERE] [2] MT 1200CC
A141: Incolmotos Yamaha S.A.
A142: Yamaha XT 660 R MT 660CC
A143: Incolmotos Yamaha S.A.
A144: Yamaha XTZ [1] 250 MT 250CC
A145: Incolmotos Yamaha S.A.
A146: Yamaha XTZ [2] 125 MT 125CC
A147: Incolmotos Yamaha S.A.
A148: Total general
